{"text_format":"1","workbook":"xlsx","n_sheets":9,"sheets":["Cover","Navigator","Style Guide","Model Parameters","Poisson Distribution","Simulation","Timing","Error Checks","Change Log"],"not_rendered":{"charts":1,"images":1,"macros":1,"external_links":0,"defined_names":35,"comments":0,"pivot_tables":0},"unopened":[],"bounds":{"document_bytes":16777216,"sheet_cells":100000,"rows_first":2000,"rows_last":500,"rows_between":2000,"halvings":0,"cell_chars":16384,"cell_head_chars":4096},"cells_cut":0,"cells_raw":0,"read":"whole","date_system":"1900"}

{"sheet":"Cover","index":0,"n_rows":22,"n_cols":7,"rows_kept":22,"cut":false,"hidden":false,"merged":[[16,2,16,9],[17,2,17,9],[20,6,20,8],[21,6,21,8]]}
[]
[]
["Navigator"]
[]
[null,null,{"$f":"Client_Name","v":"SumProduct"}]
[null,null,{"$f":"Model_Name","v":"SP Go Poisson.xlsm"}]
[]
[]
[]
[]
[]
[]
[]
[null,null,"Primary Developer:  Cecile Nguyen"]
[]
[null,null,"General Cover Notes:"]
[null,null,"PoissonInverse User-Defined Function created.\nSimulation example of Poisson distributed variable"]
[]
[]
[]
[null,null,"Any queries, please e-mail:",null,null,null,"cecile.nguyen@sumproduct.com"]
[null,null,"Website:",null,null,null,"www.sumproduct.com"]

{"sheet":"Navigator","index":1,"n_rows":16,"n_cols":7,"rows_kept":16,"cut":false,"hidden":false,"merged":[]}
["Navigator"]
[{"$f":"Model_Name","v":"SP Go Poisson.xlsm"}]
["Navigator"]
[null,null,null,null,"Error Checks:",null,{"$f":"Overall_Error_Check","v":0}]
[]
[]
[null,1,"Table of Contents"]
[]
[null,null,null,null,null,"Cover"]
[null,null,null,null,null,"Style Guide"]
[null,null,null,null,null,"Model Parameters"]
[null,null,null,null,null,"Poisson Distribution"]
[null,null,null,null,null,"Simulation"]
[null,null,null,null,null,"Timing"]
[null,null,null,null,null,"Error Checks"]
[null,null,null,null,null,"Change Log"]

{"sheet":"Style Guide","index":2,"n_rows":74,"n_cols":11,"rows_kept":74,"cut":false,"hidden":false,"merged":[[16,2,16,6],[7,2,7,6],[8,2,8,6],[9,2,9,6],[10,2,10,6],[11,2,11,6],[12,2,12,6],[13,2,13,6],[14,2,14,6],[15,2,15,6],[34,2,34,6],[17,2,17,6],[18,2,18,6],[19,2,19,6],[24,2,24,6],[25,2,25,6],[26,2,26,6],[27,2,27,6],[28,2,28,6],[29,2,29,6],[30,2,30,6],[31,2,31,6],[46,2,46,6],[35,2,35,6],[36,2,36,6],[37,2,37,6],[38,2,38,6],[39,2,39,6],[40,2,40,6],[41,2,41,6],[42,2,42,6],[43,2,43,6],[44,2,44,6],[45,2,45,6],[61,2,61,6],[47,2,47,6],[48,2,48,6],[49,2,49,6],[50,2,50,6],[51,2,51,6],[52,2,52,6],[53,2,53,6],[54,2,54,6],[57,2,57,6],[59,2,59,6],[60,2,60,6],[73,2,73,6],[62,2,62,6],[63,2,63,6],[64,2,64,6],[65,2,65,6],[66,2,66,6],[67,2,67,6],[68,2,68,6],[69,2,69,6],[70,2,70,6],[71,2,71,6],[72,2,72,6],[80,2,80,6],[74,2,74,6],[75,2,75,6],[76,2,76,6],[77,2,77,6],[78,2,78,6],[79,2,79,6]]}
[{"$f":"IF(ISERROR(RIGHT(CELL(\"filename\",A1),LEN(CELL(\"filename\",A1))-FIND(\"]\",CELL(\"filename\",A1)))),\n\"\",\nRIGHT(CELL(\"filename\",A1),LEN(CELL(\"filename\",A1))-FIND(\"]\",CELL(\"filename\",A1))))","v":"Style Guide"}]
[{"$f":"Model_Name","v":"SP Go Poisson.xlsm"}]
["Navigator"]
[null,null,null,null,"Error Checks:",null,null,null,{"$f":"Overall_Error_Check","v":0}]
[]
[null,{"$f":"MAX($B$5:$B5)+1","v":1},"Formatting of Headers / Dividers"]
[]
[null,null,"Description",null,null,null,null,null,"Display",null,"Style Name"]
[]
[null,null,"Sheet Title",null,null,null,null,null,{"$f":"C10","v":"Sheet Title"},null,"Sheet Title"]
[null,null,"Model Name",null,null,null,null,null,{"$f":"C11","v":"Model Name"},null,"Model Name"]
[]
[null,null,"Header 1",null,null,null,null,null,{"$f":"C13","v":"Header 1"},null,"Header 1"]
[null,null,"Header 2",null,null,null,null,null,{"$f":"C14","v":"Header 2"},null,"Header 2"]
[null,null,"Header 3",null,null,null,null,null,{"$f":"C15","v":"Header 3"},null,"Header 3"]
[null,null,"Header 4",null,null,null,null,null,{"$f":"C16","v":"Header 4"},null,"Header 4"]
[]
[null,null,"Notes",null,null,null,null,null,{"$f":"C18","v":"Notes"},null,"Notes"]
[]
[null,null,"Table Heading",null,null,null,null,null,{"$f":"C20","v":"Table Heading"},null,"Table Heading"]
[]
[]
[null,{"$f":"MAX($B$5:$B22)+1","v":2},"Individual Cell Styles"]
[]
[null,null,"Description",null,null,null,null,null,"Display",null,"Style Name"]
[]
[null,null,"Assumption",null,null,null,null,null,"Assumption",null,{"$f":"C27","v":"Assumption"}]
[]
[null,null,"Constraint",null,null,null,null,null,{"$f":"C29","v":"Constraint"},null,{"$f":"C29","v":"Constraint"}]
[]
[null,null,"Empty",null,null,null,null,null,null,null,{"$f":"C31","v":"Empty"}]
[]
[null,null,"Error Check",null,null,null,null,null,0,null,{"$f":"C33","v":"Error Check"}]
[]
[null,null,"Hyperlink",null,null,null,null,null,"Hyperlink",null,{"$f":"C35","v":"Hyperlink"}]
[]
[null,null,"Internal Reference",null,null,null,null,null,{"$f":"'Error Checks'!E12","v":"Example"},null,{"$f":"C37","v":"Internal Reference"}]
[]
[null,null,"Line Calculation",null,null,null,null,null,77,null,"Line Calc"]
[]
[null,null,"Line Total",null,null,null,null,null,{"$f":"I39","v":77},null,{"$f":"C41","v":"Line Total"}]
[]
[null,null,"Parameter",null,null,null,null,null,365,null,{"$f":"C43","v":"Parameter"}]
[]
[null,null,"Range Name Description",null,null,null,null,null,"Not_Named",null,{"$f":"C45","v":"Range Name Description"}]
[]
[null,null,"Row Reference",null,null,null,null,null,{"$f":"ROW(C47)","v":47},null,"Row Ref"]
[]
[null,null,"Row Summary",null,null,null,null,null,{"$f":"I41","v":77},null,{"$f":"C49","v":"Row Summary"}]
[]
[null,null,"Units",null,null,null,null,null,"A$",null,{"$f":"C51","v":"Units"}]
[]
[null,null,"WIP",null,null,null,null,null,null,null,{"$f":"C53","v":"WIP"}]
[]
[]
[null,{"$f":"MAX($B$5:$B55)+1","v":3},"Numerical Styles"]
[]
[null,null,"Description",null,null,null,null,null,"Display",null,"Style Name"]
[]
[null,null,"Comma",null,null,null,null,null,123456.789,null,{"$f":"C60","v":"Comma"}]
[]
[null,null,"Comma [0]",null,null,null,null,null,-123456.789,null,"Comma [0]"]
[]
[null,null,"Currency",null,null,null,null,null,123456.789,null,"Currency"]
[]
[null,null,"Currency [0]",null,null,null,null,null,123456.789,null,"Currency [0]"]
[]
[null,null,"Date",null,null,null,null,null,{"$f":"TODAY()","v":"2018-01-30"},null,{"$f":"C68","v":"Date"}]
[]
[null,null,"Date Heading",null,null,null,null,null,{"$f":"TODAY()","v":"2018-01-30"},null,{"$f":"C70","v":"Date Heading"}]
[]
[null,null,"Numbers 0",null,null,null,null,null,-123456.789,null,{"$f":"C72","v":"Numbers 0"}]
[]
[null,null,"Percent",null,null,null,null,null,0.5,null,{"$f":"C74","v":"Percent"}]

{"sheet":"Model Parameters","index":3,"n_rows":31,"n_cols":9,"rows_kept":31,"cut":false,"hidden":false,"merged":[[0,9,0,10],[10,6,10,13],[11,6,11,13]]}
[{"$f":"IF(ISERROR(RIGHT(CELL(\"filename\",A1),LEN(CELL(\"filename\",A1))-FIND(\"]\",CELL(\"filename\",A1)))),\n\"\",\nRIGHT(CELL(\"filename\",A1),LEN(CELL(\"filename\",A1))-FIND(\"]\",CELL(\"filename\",A1))))","v":"Model Parameters"}]
[{"$f":"Model_Name","v":"SP Go Poisson.xlsm"}]
["Navigator"]
[null,null,null,null,"Error Checks:",null,null,null,{"$f":"Overall_Error_Check","v":0}]
[]
[null,{"$f":"MAX($B$5:$B5)+1","v":1},"General"]
[]
[null,null,"Key Inputs"]
[]
[null,null,null,null,"General"]
[null,null,null,null,"Model Name",null,{"$f":"IF(ISERROR(OR(FIND(\"[\",CELL(\"filename\",A1)),FIND(\"]\",CELL(\"filename\",A1)))),\"\",MID(CELL(\"filename\",A1),FIND(\"[\",CELL(\"filename\",A1))+1,FIND(\"]\",CELL(\"filename\",A1))-FIND(\"[\",CELL(\"filename\",A1))-1))","v":"SP Go Poisson.xlsm"}]
[null,null,null,null,"Client Name",null,"SumProduct"]
[]
[]
[null,{"$f":"MAX($B$5:$B14)+1","v":2},"General Range Names"]
[]
[null,null,"Technical Assumptions"]
[]
[null,null,null,null,"Days in Year",null,365]
[null,null,null,null,"Months in Month",null,1]
[null,null,null,null,"Months in Quarter",null,3]
[null,null,null,null,"Months in Half Yr",null,6]
[null,null,null,null,"Months in Year",null,12]
[null,null,null,null,"Quarters in Year",null,4]
[]
[null,null,null,null,"Rounding Accuracy",null,5]
[]
[null,null,null,null,"Very Large Number",null,9.9999999999999997E+98]
[null,null,null,null,"Very Small Number",null,1E-8]
[]
[null,null,null,null,"Thousand",null,1000]

{"sheet":"Poisson Distribution","index":4,"n_rows":42,"n_cols":9,"rows_kept":42,"cut":false,"hidden":false,"merged":[[0,9,0,10]]}
[{"$f":"IF(ISERROR(RIGHT(CELL(\"filename\",A1),LEN(CELL(\"filename\",A1))-FIND(\"]\",CELL(\"filename\",A1)))),\n\"\",\nRIGHT(CELL(\"filename\",A1),LEN(CELL(\"filename\",A1))-FIND(\"]\",CELL(\"filename\",A1))))","v":"Poisson Distribution"}]
[{"$f":"Model_Name","v":"SP Go Poisson.xlsm"}]
["Navigator"]
[null,null,null,null,"Error Checks:",null,null,null,{"$f":"Overall_Error_Check","v":0}]
[]
[null,{"$f":"MAX($B$5:$B5)+1","v":1},"Poisson Distribution"]
[]
[]
[null,null,"Assumption"]
[]
[null,null,null,null,null,"Mean (λ)",4]
[]
[null,null,"Calculations"]
[]
[]
[null,null,null,null,null,"Value","Cumulative Probability"]
[null,null,null,null,null,{"$f":"IF(ISNUMBER(F16),F16+1,0)","v":0},{"$f":"_xlfn.POISSON.DIST(F17,Lambda,TRUE)","v":1.8315638888734179E-2}]
[null,null,null,null,null,1,9.1578194443670893E-2]
[null,null,null,null,null,2,0.23810330555354431]
[null,null,null,null,null,3,0.43347012036670896]
[null,null,null,null,null,4,0.62883693517987349]
[null,null,null,null,null,5,0.78513038703040516]
[null,null,null,null,null,6,0.88932602159742624]
[null,null,null,null,null,7,0.94886638420715264]
[null,null,null,null,null,8,0.97863656551201583]
[null,null,null,null,null,9,0.99186775720306608]
[null,null,null,null,null,10,0.99716023387948627]
[null,null,null,null,null,11,0.99908477085272995]
[null,null,null,null,null,12,0.99972628317714451]
[null,null,null,null,null,13,0.99992367158465667]
[null,null,null,null,null,14,0.99998006827251729]
[null,null,null,null,null,15,0.9999951073892801]
[null,null,null,null,null,16,0.99999886716847075]
[null,null,null,null,null,17,0.99999975182239798]
[null,null,null,null,null,18,0.99999994841215967]
[null,null,null,null,null,19,0.99999998979947791]
[null,null,null,null,null,20,0.99999999807694162]
[null,null,null,null,null,21,0.99999999965360131]
[null,null,null,null,null,22,0.99999999994026667]
[null,null,null,null,null,23,0.99999999999012157]
[null,null,null,null,null,24,0.9999999999984307]
[null,null,null,null,null,25,0.99999999999976019]

{"sheet":"Simulation","index":5,"n_rows":1047,"n_cols":12,"rows_kept":1047,"cut":false,"hidden":false,"merged":[[0,9,0,10]]}
[{"$f":"IF(ISERROR(RIGHT(CELL(\"filename\",A1),LEN(CELL(\"filename\",A1))-FIND(\"]\",CELL(\"filename\",A1)))),\n\"\",\nRIGHT(CELL(\"filename\",A1),LEN(CELL(\"filename\",A1))-FIND(\"]\",CELL(\"filename\",A1))))","v":"Simulation"}]
[{"$f":"Model_Name","v":"SP Go Poisson.xlsm"}]
["Navigator"]
[null,null,null,null,"Error Checks:",null,null,null,{"$f":"Overall_Error_Check","v":0}]
[]
[null,{"$f":"MAX($B$5:$B5)+1","v":1},"Simulation Example"]
[]
[]
[null,null,"Assumption"]
[]
[null,null,null,null,null,"Average Fish Caught Per Day",4]
[]
[null,null,"Calculations"]
[]
[null,null,null,null,"Simulation"]
[]
[null,null,null,null,null,"Day","Fish Caught"]
[null,null,null,null,null,{"$f":"N(F17)+1","v":1},{"$f":"PoissonInverse(RAND(),Lambda_Simulation)","v":6}]
[null,null,null,null,null,{"$f":"N(F18)+1","v":2},{"$f":"PoissonInverse(RAND(),Lambda_Simulation)","v":7}]
[null,null,null,null,null,3,{"$f":"PoissonInverse(RAND(),Lambda_Simulation)","v":4}]
[null,null,null,null,null,4,{"$f":"PoissonInverse(RAND(),Lambda_Simulation)","v":4}]
[null,null,null,null,null,5,{"$f":"PoissonInverse(RAND(),Lambda_Simulation)","v":4}]
[null,null,null,null,null,6,{"$f":"PoissonInverse(RAND(),Lambda_Simulation)","v":3}]
[null,null,null,null,null,7,{"$f":"PoissonInverse(RAND(),Lambda_Simulation)","v":2}]
[null,null,null,null,null,8,{"$f":"PoissonInverse(RAND(),Lambda_Simulation)","v":1}]
[null,null,null,null,null,9,{"$f":"PoissonInverse(RAND(),Lambda_Simulation)","v":6}]
[null,null,null,null,null,10,{"$f":"PoissonInverse(RAND(),Lambda_Simulation)","v":5}]
[null,null,null,null,null,11,{"$f":"PoissonInverse(RAND(),Lambda_Simulation)","v":5}]
[null,null,null,null,null,12,{"$f":"PoissonInverse(RAND(),Lambda_Simulation)","v":10}]
[null,null,null,null,null,13,{"$f":"PoissonInverse(RAND(),Lambda_Simulation)","v":3}]
[null,null,null,null,null,14,{"$f":"PoissonInverse(RAND(),Lambda_Simulation)","v":3}]
[null,null,null,null,null,15,{"$f":"PoissonInverse(RAND(),Lambda_Simulation)","v":4}]
[null,null,null,null,null,16,{"$f":"PoissonInverse(RAND(),Lambda_Simulation)","v":7}]
[null,null,null,null,null,17,{"$f":"PoissonInverse(RAND(),Lambda_Simulation)","v":6}]
[null,null,null,null,null,18,{"$f":"PoissonInverse(RAND(),Lambda_Simulation)","v":5}]
[null,null,null,null,null,19,{"$f":"PoissonInverse(RAND(),Lambda_Simulation)","v":6}]
[null,null,null,null,null,20,{"$f":"PoissonInverse(RAND(),Lambda_Simulation)","v":7}]
[null,null,null,null,null,21,{"$f":"PoissonInverse(RAND(),Lambda_Simulation)","v":5}]
[null,null,null,null,null,22,{"$f":"PoissonInverse(RAND(),Lambda_Simulation)","v":3}]
[null,null,null,null,null,23,{"$f":"PoissonInverse(RAND(),Lambda_Simulation)","v":1}]
[null,null,null,null,null,24,{"$f":"PoissonInverse(RAND(),Lambda_Simulation)","v":2}]
[null,null,null,null,null,25,{"$f":"PoissonInverse(RAND(),Lambda_Simulation)","v":2}]
[null,null,null,null,null,26,{"$f":"PoissonInverse(RAND(),Lambda_Simulation)","v":5}]
[null,null,null,null,null,27,{"$f":"PoissonInverse(RAND(),Lambda_Simulation)","v":3}]
[null,null,null,null,null,28,{"$f":"PoissonInverse(RAND(),Lambda_Simulation)","v":6}]
[null,null,null,null,null,29,{"$f":"PoissonInverse(RAND(),Lambda_Simulation)","v":3}]
[null,null,null,null,null,30,{"$f":"PoissonInverse(RAND(),Lambda_Simulation)","v":1}]
[null,null,null,null,null,31,{"$f":"PoissonInverse(RAND(),Lambda_Simulation)","v":2}]
[null,null,null,null,null,32,{"$f":"PoissonInverse(RAND(),Lambda_Simulation)","v":2}]
[null,null,null,null,null,33,{"$f":"PoissonInverse(RAND(),Lambda_Simulation)","v":2}]
[null,null,null,null,null,34,{"$f":"PoissonInverse(RAND(),Lambda_Simulation)","v":3}]
[null,null,null,null,null,35,{"$f":"PoissonInverse(RAND(),Lambda_Simulation)","v":2}]
[null,null,null,null,null,36,{"$f":"PoissonInverse(RAND(),Lambda_Simulation)","v":8}]
[null,null,null,null,null,37,{"$f":"PoissonInverse(RAND(),Lambda_Simulation)","v":3}]
[null,null,null,null,null,38,{"$f":"PoissonInverse(RAND(),Lambda_Simulation)","v":4}]
[null,null,null,null,null,39,{"$f":"PoissonInverse(RAND(),Lambda_Simulation)","v":8}]
[null,null,null,null,null,40,{"$f":"PoissonInverse(RAND(),Lambda_Simulation)","v":5}]
[null,null,null,null,null,41,{"$f":"PoissonInverse(RAND(),Lambda_Simulation)","v":7}]
[null,null,null,null,null,42,{"$f":"PoissonInverse(RAND(),Lambda_Simulation)","v":3}]
[null,null,null,null,null,43,{"$f":"PoissonInverse(RAND(),Lambda_Simulation)","v":3}]
[null,null,null,null,null,44,{"$f":"PoissonInverse(RAND(),Lambda_Simulation)","v":3}]
[null,null,null,null,null,45,{"$f":"PoissonInverse(RAND(),Lambda_Simulation)","v":6}]
[null,null,null,null,null,46,{"$f":"PoissonInverse(RAND(),Lambda_Simulation)","v":5}]
[null,null,null,null,null,47,{"$f":"PoissonInverse(RAND(),Lambda_Simulation)","v":7}]
[null,null,null,null,null,48,{"$f":"PoissonInverse(RAND(),Lambda_Simulation)","v":5}]
[null,null,null,null,null,49,{"$f":"PoissonInverse(RAND(),Lambda_Simulation)","v":4}]
[null,null,null,null,null,50,{"$f":"PoissonInverse(RAND(),Lambda_Simulation)","v":7}]
[null,null,null,null,null,51,{"$f":"PoissonInverse(RAND(),Lambda_Simulation)","v":3}]
[null,null,null,null,null,52,{"$f":"PoissonInverse(RAND(),Lambda_Simulation)","v":2}]
[null,null,null,null,null,53,{"$f":"PoissonInverse(RAND(),Lambda_Simulation)","v":11}]
[null,null,null,null,null,54,{"$f":"PoissonInverse(RAND(),Lambda_Simulation)","v":2}]
[null,null,null,null,null,55,{"$f":"PoissonInverse(RAND(),Lambda_Simulation)","v":2}]
[null,null,null,null,null,56,{"$f":"PoissonInverse(RAND(),Lambda_Simulation)","v":4}]
[null,null,null,null,null,57,{"$f":"PoissonInverse(RAND(),Lambda_Simulation)","v":5}]
[null,null,null,null,null,58,{"$f":"PoissonInverse(RAND(),Lambda_Simulation)","v":5}]
[null,null,null,null,null,59,{"$f":"PoissonInverse(RAND(),Lambda_Simulation)","v":4}]
[null,null,null,null,null,60,{"$f":"PoissonInverse(RAND(),Lambda_Simulation)","v":3}]
[null,null,null,null,null,61,{"$f":"PoissonInverse(RAND(),Lambda_Simulation)","v":5}]
[null,null,null,null,null,62,{"$f":"PoissonInverse(RAND(),Lambda_Simulation)","v":4}]
[null,null,null,null,null,63,{"$f":"PoissonInverse(RAND(),Lambda_Simulation)","v":2}]
[null,null,null,null,null,64,{"$f":"PoissonInverse(RAND(),Lambda_Simulation)","v":1}]
[null,null,null,null,null,65,{"$f":"PoissonInverse(RAND(),Lambda_Simulation)","v":2}]
[null,null,null,null,null,{"$f":"N(F82)+1","v":66},{"$f":"PoissonInverse(RAND(),Lambda_Simulation)","v":9}]
[null,null,null,null,null,67,{"$f":"PoissonInverse(RAND(),Lambda_Simulation)","v":2}]
[null,null,null,null,null,68,{"$f":"PoissonInverse(RAND(),Lambda_Simulation)","v":4}]
[null,null,null,null,null,69,{"$f":"PoissonInverse(RAND(),Lambda_Simulation)","v":2}]
[null,null,null,null,null,70,{"$f":"PoissonInverse(RAND(),Lambda_Simulation)","v":5}]
[null,null,null,null,null,71,{"$f":"PoissonInverse(RAND(),Lambda_Simulation)","v":3}]
[null,null,null,null,null,72,{"$f":"PoissonInverse(RAND(),Lambda_Simulation)","v":4}]
[null,null,null,null,null,73,{"$f":"PoissonInverse(RAND(),Lambda_Simulation)","v":2}]
[null,null,null,null,null,74,{"$f":"PoissonInverse(RAND(),Lambda_Simulation)","v":3}]
[null,null,null,null,null,75,{"$f":"PoissonInverse(RAND(),Lambda_Simulation)","v":4}]
[null,null,null,null,null,76,{"$f":"PoissonInverse(RAND(),Lambda_Simulation)","v":0}]
[null,null,null,null,null,77,{"$f":"PoissonInverse(RAND(),Lambda_Simulation)","v":3}]
[null,null,null,null,null,78,{"$f":"PoissonInverse(RAND(),Lambda_Simulation)","v":4}]
[null,null,null,null,null,79,{"$f":"PoissonInverse(RAND(),Lambda_Simulation)","v":5}]
[null,null,null,null,null,80,{"$f":"PoissonInverse(RAND(),Lambda_Simulation)","v":3}]
[null,null,null,null,null,81,{"$f":"PoissonInverse(RAND(),Lambda_Simulation)","v":2}]
[null,null,null,null,null,82,{"$f":"PoissonInverse(RAND(),Lambda_Simulation)","v":3}]
[null,null,null,null,null,83,{"$f":"PoissonInverse(RAND(),Lambda_Simulation)","v":2}]
[null,null,null,null,null,84,{"$f":"PoissonInverse(RAND(),Lambda_Simulation)","v":4}]
[null,null,null,null,null,85,{"$f":"PoissonInverse(RAND(),Lambda_Simulation)","v":2}]
[null,null,null,null,null,86,{"$f":"PoissonInverse(RAND(),Lambda_Simulation)","v":2}]
[null,null,null,null,null,87,{"$f":"PoissonInverse(RAND(),Lambda_Simulation)","v":6}]
[null,null,null,null,null,88,{"$f":"PoissonInverse(RAND(),Lambda_Simulation)","v":3}]
[null,null,null,null,null,89,{"$f":"PoissonInverse(RAND(),Lambda_Simulation)","v":3}]
[null,null,null,null,null,90,{"$f":"PoissonInverse(RAND(),Lambda_Simulation)","v":2}]
[null,null,null,null,null,91,{"$f":"PoissonInverse(RAND(),Lambda_Simulation)","v":2}]
[null,null,null,null,null,92,{"$f":"PoissonInverse(RAND(),Lambda_Simulation)","v":5}]
[null,null,null,null,null,93,{"$f":"PoissonInverse(RAND(),Lambda_Simulation)","v":3}]
[null,null,null,null,null,94,{"$f":"PoissonInverse(RAND(),Lambda_Simulation)","v":3}]
[null,null,null,null,null,95,{"$f":"PoissonInverse(RAND(),Lambda_Simulation)","v":3}]
[null,null,null,null,null,96,{"$f":"PoissonInverse(RAND(),Lambda_Simulation)","v":1}]
[null,null,null,null,null,97,{"$f":"PoissonInverse(RAND(),Lambda_Simulation)","v":7}]
[null,null,null,null,null,98,{"$f":"PoissonInverse(RAND(),Lambda_Simulation)","v":3}]
[null,null,null,null,null,99,{"$f":"PoissonInverse(RAND(),Lambda_Simulation)","v":2}]
[null,null,null,null,null,100,{"$f":"PoissonInverse(RAND(),Lambda_Simulation)","v":5}]
[null,null,null,null,null,101,{"$f":"PoissonInverse(RAND(),Lambda_Simulation)","v":2}]
[null,null,null,null,null,102,{"$f":"PoissonInverse(RAND(),Lambda_Simulation)","v":1}]
[null,null,null,null,null,103,{"$f":"PoissonInverse(RAND(),Lambda_Simulation)","v":3}]
[null,null,null,null,null,104,{"$f":"PoissonInverse(RAND(),Lambda_Simulation)","v":6}]
[null,null,null,null,null,105,{"$f":"PoissonInverse(RAND(),Lambda_Simulation)","v":4}]
[null,null,null,null,null,106,{"$f":"PoissonInverse(RAND(),Lambda_Simulation)","v":4}]
[null,null,null,null,null,107,{"$f":"PoissonInverse(RAND(),Lambda_Simulation)","v":2}]
[null,null,null,null,null,108,{"$f":"PoissonInverse(RAND(),Lambda_Simulation)","v":6}]
[null,null,null,null,null,109,{"$f":"PoissonInverse(RAND(),Lambda_Simulation)","v":1}]
[null,null,null,null,null,110,{"$f":"PoissonInverse(RAND(),Lambda_Simulation)","v":4}]
[null,null,null,null,null,111,{"$f":"PoissonInverse(RAND(),Lambda_Simulation)","v":2}]
[null,null,null,null,null,112,{"$f":"PoissonInverse(RAND(),Lambda_Simulation)","v":5}]
[null,null,null,null,null,113,{"$f":"PoissonInverse(RAND(),Lambda_Simulation)","v":1}]
[null,null,null,null,null,114,{"$f":"PoissonInverse(RAND(),Lambda_Simulation)","v":1},null,null,null,null,{"$f":"4/L132","v":222.88183173224917}]
[null,null,null,null,null,115,{"$f":"PoissonInverse(RAND(),Lambda_Simulation)","v":1},null,null,null,null,1.7946729748727352E-2]
[null,null,null,null,null,116,{"$f":"PoissonInverse(RAND(),Lambda_Simulation)","v":3}]
[null,null,null,null,null,117,{"$f":"PoissonInverse(RAND(),Lambda_Simulation)","v":1},null,null,null,null,{"$f":"_xlfn.BINOM.INV(L131,4/L131,L132)","v":1}]
[null,null,null,null,null,118,{"$f":"PoissonInverse(RAND(),Lambda_Simulation)","v":5}]
[null,null,null,null,null,119,{"$f":"PoissonInverse(RAND(),Lambda_Simulation)","v":3}]
[null,null,null,null,null,120,{"$f":"PoissonInverse(RAND(),Lambda_Simulation)","v":4}]
[null,null,null,null,null,121,{"$f":"PoissonInverse(RAND(),Lambda_Simulation)","v":5}]
[null,null,null,null,null,122,{"$f":"PoissonInverse(RAND(),Lambda_Simulation)","v":5}]
[null,null,null,null,null,123,{"$f":"PoissonInverse(RAND(),Lambda_Simulation)","v":1}]
[null,null,null,null,null,124,{"$f":"PoissonInverse(RAND(),Lambda_Simulation)","v":4}]
[null,null,null,null,null,125,{"$f":"PoissonInverse(RAND(),Lambda_Simulation)","v":9}]
[null,null,null,null,null,126,{"$f":"PoissonInverse(RAND(),Lambda_Simulation)","v":1}]
[null,null,null,null,null,127,{"$f":"PoissonInverse(RAND(),Lambda_Simulation)","v":8}]
[null,null,null,null,null,128,{"$f":"PoissonInverse(RAND(),Lambda_Simulation)","v":2}]
[null,null,null,null,null,129,{"$f":"PoissonInverse(RAND(),Lambda_Simulation)","v":4}]
[null,null,null,null,null,{"$f":"N(F146)+1","v":130},{"$f":"PoissonInverse(RAND(),Lambda_Simulation)","v":5}]
[null,null,null,null,null,131,{"$f":"PoissonInverse(RAND(),Lambda_Simulation)","v":2}]
[null,null,null,null,null,132,{"$f":"PoissonInverse(RAND(),Lambda_Simulation)","v":3}]
[null,null,null,null,null,133,{"$f":"PoissonInverse(RAND(),Lambda_Simulation)","v":6}]
[null,null,null,null,null,134,{"$f":"PoissonInverse(RAND(),Lambda_Simulation)","v":5}]
[null,null,null,null,null,135,{"$f":"PoissonInverse(RAND(),Lambda_Simulation)","v":5}]
[null,null,null,null,null,136,{"$f":"PoissonInverse(RAND(),Lambda_Simulation)","v":3}]
[null,null,null,null,null,137,{"$f":"PoissonInverse(RAND(),Lambda_Simulation)","v":5}]
[null,null,null,null,null,138,{"$f":"PoissonInverse(RAND(),Lambda_Simulation)","v":7}]
[null,null,null,null,null,139,{"$f":"PoissonInverse(RAND(),Lambda_Simulation)","v":4}]
[null,null,null,null,null,140,{"$f":"PoissonInverse(RAND(),Lambda_Simulation)","v":4}]
[null,null,null,null,null,141,{"$f":"PoissonInverse(RAND(),Lambda_Simulation)","v":3}]
[null,null,null,null,null,142,{"$f":"PoissonInverse(RAND(),Lambda_Simulation)","v":4}]
[null,null,null,null,null,143,{"$f":"PoissonInverse(RAND(),Lambda_Simulation)","v":1}]
[null,null,null,null,null,144,{"$f":"PoissonInverse(RAND(),Lambda_Simulation)","v":10}]
[null,null,null,null,null,145,{"$f":"PoissonInverse(RAND(),Lambda_Simulation)","v":4}]
[null,null,null,null,null,146,{"$f":"PoissonInverse(RAND(),Lambda_Simulation)","v":4}]
[null,null,null,null,null,147,{"$f":"PoissonInverse(RAND(),Lambda_Simulation)","v":2}]
[null,null,null,null,null,148,{"$f":"PoissonInverse(RAND(),Lambda_Simulation)","v":1}]
[null,null,null,null,null,149,{"$f":"PoissonInverse(RAND(),Lambda_Simulation)","v":1}]
[null,null,null,null,null,150,{"$f":"PoissonInverse(RAND(),Lambda_Simulation)","v":1}]
[null,null,null,null,null,151,{"$f":"PoissonInverse(RAND(),Lambda_Simulation)","v":5}]
[null,null,null,null,null,152,{"$f":"PoissonInverse(RAND(),Lambda_Simulation)","v":4}]
[null,null,null,null,null,153,{"$f":"PoissonInverse(RAND(),Lambda_Simulation)","v":6}]
[null,null,null,null,null,154,{"$f":"PoissonInverse(RAND(),Lambda_Simulation)","v":1}]
[null,null,null,null,null,155,{"$f":"PoissonInverse(RAND(),Lambda_Simulation)","v":4}]
[null,null,null,null,null,156,{"$f":"PoissonInverse(RAND(),Lambda_Simulation)","v":5}]
[null,null,null,null,null,157,{"$f":"PoissonInverse(RAND(),Lambda_Simulation)","v":6}]
[null,null,null,null,null,158,{"$f":"PoissonInverse(RAND(),Lambda_Simulation)","v":5}]
[null,null,null,null,null,159,{"$f":"PoissonInverse(RAND(),Lambda_Simulation)","v":3}]
[null,null,null,null,null,160,{"$f":"PoissonInverse(RAND(),Lambda_Simulation)","v":6}]
[null,null,null,null,null,161,{"$f":"PoissonInverse(RAND(),Lambda_Simulation)","v":6}]
[null,null,null,null,null,162,{"$f":"PoissonInverse(RAND(),Lambda_Simulation)","v":5}]
[null,null,null,null,null,163,{"$f":"PoissonInverse(RAND(),Lambda_Simulation)","v":5}]
[null,null,null,null,null,164,{"$f":"PoissonInverse(RAND(),Lambda_Simulation)","v":4}]
[null,null,null,null,null,165,{"$f":"PoissonInverse(RAND(),Lambda_Simulation)","v":6}]
[null,null,null,null,null,166,{"$f":"PoissonInverse(RAND(),Lambda_Simulation)","v":9}]
[null,null,null,null,null,167,{"$f":"PoissonInverse(RAND(),Lambda_Simulation)","v":7}]
[null,null,null,null,null,168,{"$f":"PoissonInverse(RAND(),Lambda_Simulation)","v":3}]
[null,null,null,null,null,169,{"$f":"PoissonInverse(RAND(),Lambda_Simulation)","v":2}]
[null,null,null,null,null,170,{"$f":"PoissonInverse(RAND(),Lambda_Simulation)","v":9}]
[null,null,null,null,null,171,{"$f":"PoissonInverse(RAND(),Lambda_Simulation)","v":7}]
[null,null,null,null,null,172,{"$f":"PoissonInverse(RAND(),Lambda_Simulation)","v":6}]
[null,null,null,null,null,173,{"$f":"PoissonInverse(RAND(),Lambda_Simulation)","v":1}]
[null,null,null,null,null,174,{"$f":"PoissonInverse(RAND(),Lambda_Simulation)","v":5}]
[null,null,null,null,null,175,{"$f":"PoissonInverse(RAND(),Lambda_Simulation)","v":6}]
[null,null,null,null,null,176,{"$f":"PoissonInverse(RAND(),Lambda_Simulation)","v":7}]
[null,null,null,null,null,177,{"$f":"PoissonInverse(RAND(),Lambda_Simulation)","v":5}]
[null,null,null,null,null,178,{"$f":"PoissonInverse(RAND(),Lambda_Simulation)","v":7}]
[null,null,null,null,null,179,{"$f":"PoissonInverse(RAND(),Lambda_Simulation)","v":1}]
[null,null,null,null,null,180,{"$f":"PoissonInverse(RAND(),Lambda_Simulation)","v":5}]
[null,null,null,null,null,181,{"$f":"PoissonInverse(RAND(),Lambda_Simulation)","v":3}]
[null,null,null,null,null,182,{"$f":"PoissonInverse(RAND(),Lambda_Simulation)","v":7}]
[null,null,null,null,null,183,{"$f":"PoissonInverse(RAND(),Lambda_Simulation)","v":3}]
[null,null,null,null,null,184,{"$f":"PoissonInverse(RAND(),Lambda_Simulation)","v":1}]
[null,null,null,null,null,185,{"$f":"PoissonInverse(RAND(),Lambda_Simulation)","v":2}]
[null,null,null,null,null,186,{"$f":"PoissonInverse(RAND(),Lambda_Simulation)","v":5}]
[null,null,null,null,null,187,{"$f":"PoissonInverse(RAND(),Lambda_Simulation)","v":4}]
[null,null,null,null,null,188,{"$f":"PoissonInverse(RAND(),Lambda_Simulation)","v":7}]
[null,null,null,null,null,189,{"$f":"PoissonInverse(RAND(),Lambda_Simulation)","v":2}]
[null,null,null,null,null,190,{"$f":"PoissonInverse(RAND(),Lambda_Simulation)","v":7}]
[null,null,null,null,null,191,{"$f":"PoissonInverse(RAND(),Lambda_Simulation)","v":4}]
[null,null,null,null,null,192,{"$f":"PoissonInverse(RAND(),Lambda_Simulation)","v":4}]
[null,null,null,null,null,193,{"$f":"PoissonInverse(RAND(),Lambda_Simulation)","v":4}]
[null,null,null,null,null,{"$f":"N(F210)+1","v":194},{"$f":"PoissonInverse(RAND(),Lambda_Simulation)","v":3}]
[null,null,null,null,null,195,{"$f":"PoissonInverse(RAND(),Lambda_Simulation)","v":5}]
[null,null,null,null,null,196,{"$f":"PoissonInverse(RAND(),Lambda_Simulation)","v":6}]
[null,null,null,null,null,197,{"$f":"PoissonInverse(RAND(),Lambda_Simulation)","v":8}]
[null,null,null,null,null,198,{"$f":"PoissonInverse(RAND(),Lambda_Simulation)","v":7}]
[null,null,null,null,null,199,{"$f":"PoissonInverse(RAND(),Lambda_Simulation)","v":5}]
[null,null,null,null,null,200,{"$f":"PoissonInverse(RAND(),Lambda_Simulation)","v":6}]
[null,null,null,null,null,201,{"$f":"PoissonInverse(RAND(),Lambda_Simulation)","v":4}]
[null,null,null,null,null,202,{"$f":"PoissonInverse(RAND(),Lambda_Simulation)","v":3}]
[null,null,null,null,null,203,{"$f":"PoissonInverse(RAND(),Lambda_Simulation)","v":3}]
[null,null,null,null,null,204,{"$f":"PoissonInverse(RAND(),Lambda_Simulation)","v":1}]
[null,null,null,null,null,205,{"$f":"PoissonInverse(RAND(),Lambda_Simulation)","v":2}]
[null,null,null,null,null,206,{"$f":"PoissonInverse(RAND(),Lambda_Simulation)","v":3}]
[null,null,null,null,null,207,{"$f":"PoissonInverse(RAND(),Lambda_Simulation)","v":9}]
[null,null,null,null,null,208,{"$f":"PoissonInverse(RAND(),Lambda_Simulation)","v":4}]
[null,null,null,null,null,209,{"$f":"PoissonInverse(RAND(),Lambda_Simulation)","v":3}]
[null,null,null,null,null,210,{"$f":"PoissonInverse(RAND(),Lambda_Simulation)","v":2}]
[null,null,null,null,null,211,{"$f":"PoissonInverse(RAND(),Lambda_Simulation)","v":5}]
[null,null,null,null,null,212,{"$f":"PoissonInverse(RAND(),Lambda_Simulation)","v":2}]
[null,null,null,null,null,213,{"$f":"PoissonInverse(RAND(),Lambda_Simulation)","v":4}]
[null,null,null,null,null,214,{"$f":"PoissonInverse(RAND(),Lambda_Simulation)","v":3}]
[null,null,null,null,null,215,{"$f":"PoissonInverse(RAND(),Lambda_Simulation)","v":6}]
[null,null,null,null,null,216,{"$f":"PoissonInverse(RAND(),Lambda_Simulation)","v":4}]
[null,null,null,null,null,217,{"$f":"PoissonInverse(RAND(),Lambda_Simulation)","v":6}]
[null,null,null,null,null,218,{"$f":"PoissonInverse(RAND(),Lambda_Simulation)","v":4}]
[null,null,null,null,null,219,{"$f":"PoissonInverse(RAND(),Lambda_Simulation)","v":3}]
[null,null,null,null,null,220,{"$f":"PoissonInverse(RAND(),Lambda_Simulation)","v":3}]
[null,null,null,null,null,221,{"$f":"PoissonInverse(RAND(),Lambda_Simulation)","v":4}]
[null,null,null,null,null,222,{"$f":"PoissonInverse(RAND(),Lambda_Simulation)","v":12}]
[null,null,null,null,null,223,{"$f":"PoissonInverse(RAND(),Lambda_Simulation)","v":3}]
[null,null,null,null,null,224,{"$f":"PoissonInverse(RAND(),Lambda_Simulation)","v":6}]
[null,null,null,null,null,225,{"$f":"PoissonInverse(RAND(),Lambda_Simulation)","v":4}]
[null,null,null,null,null,226,{"$f":"PoissonInverse(RAND(),Lambda_Simulation)","v":4}]
[null,null,null,null,null,227,{"$f":"PoissonInverse(RAND(),Lambda_Simulation)","v":4}]
[null,null,null,null,null,228,{"$f":"PoissonInverse(RAND(),Lambda_Simulation)","v":5}]
[null,null,null,null,null,229,{"$f":"PoissonInverse(RAND(),Lambda_Simulation)","v":1}]
[null,null,null,null,null,230,{"$f":"PoissonInverse(RAND(),Lambda_Simulation)","v":4}]
[null,null,null,null,null,231,{"$f":"PoissonInverse(RAND(),Lambda_Simulation)","v":5}]
[null,null,null,null,null,232,{"$f":"PoissonInverse(RAND(),Lambda_Simulation)","v":4}]
[null,null,null,null,null,233,{"$f":"PoissonInverse(RAND(),Lambda_Simulation)","v":6}]
[null,null,null,null,null,234,{"$f":"PoissonInverse(RAND(),Lambda_Simulation)","v":3}]
[null,null,null,null,null,235,{"$f":"PoissonInverse(RAND(),Lambda_Simulation)","v":6}]
[null,null,null,null,null,236,{"$f":"PoissonInverse(RAND(),Lambda_Simulation)","v":8}]
[null,null,null,null,null,237,{"$f":"PoissonInverse(RAND(),Lambda_Simulation)","v":7}]
[null,null,null,null,null,238,{"$f":"PoissonInverse(RAND(),Lambda_Simulation)","v":2}]
[null,null,null,null,null,239,{"$f":"PoissonInverse(RAND(),Lambda_Simulation)","v":2}]
[null,null,null,null,null,240,{"$f":"PoissonInverse(RAND(),Lambda_Simulation)","v":6}]
[null,null,null,null,null,241,{"$f":"PoissonInverse(RAND(),Lambda_Simulation)","v":6}]
[null,null,null,null,null,242,{"$f":"PoissonInverse(RAND(),Lambda_Simulation)","v":3}]
[null,null,null,null,null,243,{"$f":"PoissonInverse(RAND(),Lambda_Simulation)","v":4}]
[null,null,null,null,null,244,{"$f":"PoissonInverse(RAND(),Lambda_Simulation)","v":0}]
[null,null,null,null,null,245,{"$f":"PoissonInverse(RAND(),Lambda_Simulation)","v":3}]
[null,null,null,null,null,246,{"$f":"PoissonInverse(RAND(),Lambda_Simulation)","v":2}]
[null,null,null,null,null,247,{"$f":"PoissonInverse(RAND(),Lambda_Simulation)","v":3}]
[null,null,null,null,null,248,{"$f":"PoissonInverse(RAND(),Lambda_Simulation)","v":4}]
[null,null,null,null,null,249,{"$f":"PoissonInverse(RAND(),Lambda_Simulation)","v":4}]
[null,null,null,null,null,250,{"$f":"PoissonInverse(RAND(),Lambda_Simulation)","v":2}]
[null,null,null,null,null,251,{"$f":"PoissonInverse(RAND(),Lambda_Simulation)","v":6}]
[null,null,null,null,null,252,{"$f":"PoissonInverse(RAND(),Lambda_Simulation)","v":0}]
[null,null,null,null,null,253,{"$f":"PoissonInverse(RAND(),Lambda_Simulation)","v":7}]
[null,null,null,null,null,254,{"$f":"PoissonInverse(RAND(),Lambda_Simulation)","v":2}]
[null,null,null,null,null,255,{"$f":"PoissonInverse(RAND(),Lambda_Simulation)","v":6}]
[null,null,null,null,null,256,{"$f":"PoissonInverse(RAND(),Lambda_Simulation)","v":3}]
[null,null,null,null,null,257,{"$f":"PoissonInverse(RAND(),Lambda_Simulation)","v":8}]
[null,null,null,null,null,{"$f":"N(F274)+1","v":258},{"$f":"PoissonInverse(RAND(),Lambda_Simulation)","v":5}]
[null,null,null,null,null,259,{"$f":"PoissonInverse(RAND(),Lambda_Simulation)","v":5}]
[null,null,null,null,null,260,{"$f":"PoissonInverse(RAND(),Lambda_Simulation)","v":4}]
[null,null,null,null,null,261,{"$f":"PoissonInverse(RAND(),Lambda_Simulation)","v":5}]
[null,null,null,null,null,262,{"$f":"PoissonInverse(RAND(),Lambda_Simulation)","v":4}]
[null,null,null,null,null,263,{"$f":"PoissonInverse(RAND(),Lambda_Simulation)","v":4}]
[null,null,null,null,null,264,{"$f":"PoissonInverse(RAND(),Lambda_Simulation)","v":7}]
[null,null,null,null,null,265,{"$f":"PoissonInverse(RAND(),Lambda_Simulation)","v":2}]
[null,null,null,null,null,266,{"$f":"PoissonInverse(RAND(),Lambda_Simulation)","v":3}]
[null,null,null,null,null,267,{"$f":"PoissonInverse(RAND(),Lambda_Simulation)","v":6}]
[null,null,null,null,null,268,{"$f":"PoissonInverse(RAND(),Lambda_Simulation)","v":2}]
[null,null,null,null,null,269,{"$f":"PoissonInverse(RAND(),Lambda_Simulation)","v":7}]
[null,null,null,null,null,270,{"$f":"PoissonInverse(RAND(),Lambda_Simulation)","v":7}]
[null,null,null,null,null,271,{"$f":"PoissonInverse(RAND(),Lambda_Simulation)","v":2}]
[null,null,null,null,null,272,{"$f":"PoissonInverse(RAND(),Lambda_Simulation)","v":5}]
[null,null,null,null,null,273,{"$f":"PoissonInverse(RAND(),Lambda_Simulation)","v":6}]
[null,null,null,null,null,274,{"$f":"PoissonInverse(RAND(),Lambda_Simulation)","v":7}]
[null,null,null,null,null,275,{"$f":"PoissonInverse(RAND(),Lambda_Simulation)","v":6}]
[null,null,null,null,null,276,{"$f":"PoissonInverse(RAND(),Lambda_Simulation)","v":5}]
[null,null,null,null,null,277,{"$f":"PoissonInverse(RAND(),Lambda_Simulation)","v":4}]
[null,null,null,null,null,278,{"$f":"PoissonInverse(RAND(),Lambda_Simulation)","v":6}]
[null,null,null,null,null,279,{"$f":"PoissonInverse(RAND(),Lambda_Simulation)","v":3}]
[null,null,null,null,null,280,{"$f":"PoissonInverse(RAND(),Lambda_Simulation)","v":3}]
[null,null,null,null,null,281,{"$f":"PoissonInverse(RAND(),Lambda_Simulation)","v":4}]
[null,null,null,null,null,282,{"$f":"PoissonInverse(RAND(),Lambda_Simulation)","v":2}]
[null,null,null,null,null,283,{"$f":"PoissonInverse(RAND(),Lambda_Simulation)","v":7}]
[null,null,null,null,null,284,{"$f":"PoissonInverse(RAND(),Lambda_Simulation)","v":1}]
[null,null,null,null,null,285,{"$f":"PoissonInverse(RAND(),Lambda_Simulation)","v":4}]
[null,null,null,null,null,286,{"$f":"PoissonInverse(RAND(),Lambda_Simulation)","v":5}]
[null,null,null,null,null,287,{"$f":"PoissonInverse(RAND(),Lambda_Simulation)","v":3}]
[null,null,null,null,null,288,{"$f":"PoissonInverse(RAND(),Lambda_Simulation)","v":4}]
[null,null,null,null,null,289,{"$f":"PoissonInverse(RAND(),Lambda_Simulation)","v":5}]
[null,null,null,null,null,290,{"$f":"PoissonInverse(RAND(),Lambda_Simulation)","v":3}]
[null,null,null,null,null,291,{"$f":"PoissonInverse(RAND(),Lambda_Simulation)","v":8}]
[null,null,null,null,null,292,{"$f":"PoissonInverse(RAND(),Lambda_Simulation)","v":7}]
[null,null,null,null,null,293,{"$f":"PoissonInverse(RAND(),Lambda_Simulation)","v":3}]
[null,null,null,null,null,294,{"$f":"PoissonInverse(RAND(),Lambda_Simulation)","v":1}]
[null,null,null,null,null,295,{"$f":"PoissonInverse(RAND(),Lambda_Simulation)","v":9}]
[null,null,null,null,null,296,{"$f":"PoissonInverse(RAND(),Lambda_Simulation)","v":2}]
[null,null,null,null,null,297,{"$f":"PoissonInverse(RAND(),Lambda_Simulation)","v":3}]
[null,null,null,null,null,298,{"$f":"PoissonInverse(RAND(),Lambda_Simulation)","v":5}]
[null,null,null,null,null,299,{"$f":"PoissonInverse(RAND(),Lambda_Simulation)","v":3}]
[null,null,null,null,null,300,{"$f":"PoissonInverse(RAND(),Lambda_Simulation)","v":7}]
[null,null,null,null,null,301,{"$f":"PoissonInverse(RAND(),Lambda_Simulation)","v":2}]
[null,null,null,null,null,302,{"$f":"PoissonInverse(RAND(),Lambda_Simulation)","v":5}]
[null,null,null,null,null,303,{"$f":"PoissonInverse(RAND(),Lambda_Simulation)","v":2}]
[null,null,null,null,null,304,{"$f":"PoissonInverse(RAND(),Lambda_Simulation)","v":3}]
[null,null,null,null,null,305,{"$f":"PoissonInverse(RAND(),Lambda_Simulation)","v":3}]
[null,null,null,null,null,306,{"$f":"PoissonInverse(RAND(),Lambda_Simulation)","v":4}]
[null,null,null,null,null,307,{"$f":"PoissonInverse(RAND(),Lambda_Simulation)","v":9}]
[null,null,null,null,null,308,{"$f":"PoissonInverse(RAND(),Lambda_Simulation)","v":3}]
[null,null,null,null,null,309,{"$f":"PoissonInverse(RAND(),Lambda_Simulation)","v":11}]
[null,null,null,null,null,310,{"$f":"PoissonInverse(RAND(),Lambda_Simulation)","v":5}]
[null,null,null,null,null,311,{"$f":"PoissonInverse(RAND(),Lambda_Simulation)","v":5}]
[null,null,null,null,null,312,{"$f":"PoissonInverse(RAND(),Lambda_Simulation)","v":4}]
[null,null,null,null,null,313,{"$f":"PoissonInverse(RAND(),Lambda_Simulation)","v":3}]
[null,null,null,null,null,314,{"$f":"PoissonInverse(RAND(),Lambda_Simulation)","v":1}]
[null,null,null,null,null,315,{"$f":"PoissonInverse(RAND(),Lambda_Simulation)","v":5}]
[null,null,null,null,null,316,{"$f":"PoissonInverse(RAND(),Lambda_Simulation)","v":3}]
[null,null,null,null,null,317,{"$f":"PoissonInverse(RAND(),Lambda_Simulation)","v":2}]
[null,null,null,null,null,318,{"$f":"PoissonInverse(RAND(),Lambda_Simulation)","v":4}]
[null,null,null,null,null,319,{"$f":"PoissonInverse(RAND(),Lambda_Simulation)","v":2}]
[null,null,null,null,null,320,{"$f":"PoissonInverse(RAND(),Lambda_Simulation)","v":1}]
[null,null,null,null,null,321,{"$f":"PoissonInverse(RAND(),Lambda_Simulation)","v":2}]
[null,null,null,null,null,{"$f":"N(F338)+1","v":322},{"$f":"PoissonInverse(RAND(),Lambda_Simulation)","v":2}]
[null,null,null,null,null,323,{"$f":"PoissonInverse(RAND(),Lambda_Simulation)","v":1}]
[null,null,null,null,null,324,{"$f":"PoissonInverse(RAND(),Lambda_Simulation)","v":2}]
[null,null,null,null,null,325,{"$f":"PoissonInverse(RAND(),Lambda_Simulation)","v":2}]
[null,null,null,null,null,326,{"$f":"PoissonInverse(RAND(),Lambda_Simulation)","v":3}]
[null,null,null,null,null,327,{"$f":"PoissonInverse(RAND(),Lambda_Simulation)","v":0}]
[null,null,null,null,null,328,{"$f":"PoissonInverse(RAND(),Lambda_Simulation)","v":4}]
[null,null,null,null,null,329,{"$f":"PoissonInverse(RAND(),Lambda_Simulation)","v":3}]
[null,null,null,null,null,330,{"$f":"PoissonInverse(RAND(),Lambda_Simulation)","v":9}]
[null,null,null,null,null,331,{"$f":"PoissonInverse(RAND(),Lambda_Simulation)","v":5}]
[null,null,null,null,null,332,{"$f":"PoissonInverse(RAND(),Lambda_Simulation)","v":3}]
[null,null,null,null,null,333,{"$f":"PoissonInverse(RAND(),Lambda_Simulation)","v":4}]
[null,null,null,null,null,334,{"$f":"PoissonInverse(RAND(),Lambda_Simulation)","v":8}]
[null,null,null,null,null,335,{"$f":"PoissonInverse(RAND(),Lambda_Simulation)","v":5}]
[null,null,null,null,null,336,{"$f":"PoissonInverse(RAND(),Lambda_Simulation)","v":4}]
[null,null,null,null,null,337,{"$f":"PoissonInverse(RAND(),Lambda_Simulation)","v":3}]
[null,null,null,null,null,338,{"$f":"PoissonInverse(RAND(),Lambda_Simulation)","v":4}]
[null,null,null,null,null,339,{"$f":"PoissonInverse(RAND(),Lambda_Simulation)","v":6}]
[null,null,null,null,null,340,{"$f":"PoissonInverse(RAND(),Lambda_Simulation)","v":5}]
[null,null,null,null,null,341,{"$f":"PoissonInverse(RAND(),Lambda_Simulation)","v":2}]
[null,null,null,null,null,342,{"$f":"PoissonInverse(RAND(),Lambda_Simulation)","v":8}]
[null,null,null,null,null,343,{"$f":"PoissonInverse(RAND(),Lambda_Simulation)","v":3}]
[null,null,null,null,null,344,{"$f":"PoissonInverse(RAND(),Lambda_Simulation)","v":7}]
[null,null,null,null,null,345,{"$f":"PoissonInverse(RAND(),Lambda_Simulation)","v":4}]
[null,null,null,null,null,346,{"$f":"PoissonInverse(RAND(),Lambda_Simulation)","v":3}]
[null,null,null,null,null,347,{"$f":"PoissonInverse(RAND(),Lambda_Simulation)","v":6}]
[null,null,null,null,null,348,{"$f":"PoissonInverse(RAND(),Lambda_Simulation)","v":0}]
[null,null,null,null,null,349,{"$f":"PoissonInverse(RAND(),Lambda_Simulation)","v":1}]
[null,null,null,null,null,350,{"$f":"PoissonInverse(RAND(),Lambda_Simulation)","v":3}]
[null,null,null,null,null,351,{"$f":"PoissonInverse(RAND(),Lambda_Simulation)","v":2}]
[null,null,null,null,null,352,{"$f":"PoissonInverse(RAND(),Lambda_Simulation)","v":3}]
[null,null,null,null,null,353,{"$f":"PoissonInverse(RAND(),Lambda_Simulation)","v":5}]
[null,null,null,null,null,354,{"$f":"PoissonInverse(RAND(),Lambda_Simulation)","v":2}]
[null,null,null,null,null,355,{"$f":"PoissonInverse(RAND(),Lambda_Simulation)","v":4}]
[null,null,null,null,null,356,{"$f":"PoissonInverse(RAND(),Lambda_Simulation)","v":1}]
[null,null,null,null,null,357,{"$f":"PoissonInverse(RAND(),Lambda_Simulation)","v":5}]
[null,null,null,null,null,358,{"$f":"PoissonInverse(RAND(),Lambda_Simulation)","v":7}]
[null,null,null,null,null,359,{"$f":"PoissonInverse(RAND(),Lambda_Simulation)","v":5}]
[null,null,null,null,null,360,{"$f":"PoissonInverse(RAND(),Lambda_Simulation)","v":6}]
[null,null,null,null,null,361,{"$f":"PoissonInverse(RAND(),Lambda_Simulation)","v":5}]
[null,null,null,null,null,362,{"$f":"PoissonInverse(RAND(),Lambda_Simulation)","v":5}]
[null,null,null,null,null,363,{"$f":"PoissonInverse(RAND(),Lambda_Simulation)","v":3}]
[null,null,null,null,null,364,{"$f":"PoissonInverse(RAND(),Lambda_Simulation)","v":9}]
[null,null,null,null,null,365,{"$f":"PoissonInverse(RAND(),Lambda_Simulation)","v":4}]
[null,null,null,null,null,366,{"$f":"PoissonInverse(RAND(),Lambda_Simulation)","v":8}]
[null,null,null,null,null,367,{"$f":"PoissonInverse(RAND(),Lambda_Simulation)","v":4}]
[null,null,null,null,null,368,{"$f":"PoissonInverse(RAND(),Lambda_Simulation)","v":2}]
[null,null,null,null,null,369,{"$f":"PoissonInverse(RAND(),Lambda_Simulation)","v":5}]
[null,null,null,null,null,370,{"$f":"PoissonInverse(RAND(),Lambda_Simulation)","v":3}]
[null,null,null,null,null,371,{"$f":"PoissonInverse(RAND(),Lambda_Simulation)","v":4}]
[null,null,null,null,null,372,{"$f":"PoissonInverse(RAND(),Lambda_Simulation)","v":5}]
[null,null,null,null,null,373,{"$f":"PoissonInverse(RAND(),Lambda_Simulation)","v":3}]
[null,null,null,null,null,374,{"$f":"PoissonInverse(RAND(),Lambda_Simulation)","v":6}]
[null,null,null,null,null,375,{"$f":"PoissonInverse(RAND(),Lambda_Simulation)","v":5}]
[null,null,null,null,null,376,{"$f":"PoissonInverse(RAND(),Lambda_Simulation)","v":2}]
[null,null,null,null,null,377,{"$f":"PoissonInverse(RAND(),Lambda_Simulation)","v":2}]
[null,null,null,null,null,378,{"$f":"PoissonInverse(RAND(),Lambda_Simulation)","v":4}]
[null,null,null,null,null,379,{"$f":"PoissonInverse(RAND(),Lambda_Simulation)","v":3}]
[null,null,null,null,null,380,{"$f":"PoissonInverse(RAND(),Lambda_Simulation)","v":3}]
[null,null,null,null,null,381,{"$f":"PoissonInverse(RAND(),Lambda_Simulation)","v":4}]
[null,null,null,null,null,382,{"$f":"PoissonInverse(RAND(),Lambda_Simulation)","v":6}]
[null,null,null,null,null,383,{"$f":"PoissonInverse(RAND(),Lambda_Simulation)","v":4}]
[null,null,null,null,null,384,{"$f":"PoissonInverse(RAND(),Lambda_Simulation)","v":5}]
[null,null,null,null,null,385,{"$f":"PoissonInverse(RAND(),Lambda_Simulation)","v":2}]
[null,null,null,null,null,{"$f":"N(F402)+1","v":386},{"$f":"PoissonInverse(RAND(),Lambda_Simulation)","v":3}]
[null,null,null,null,null,387,{"$f":"PoissonInverse(RAND(),Lambda_Simulation)","v":4}]
[null,null,null,null,null,388,{"$f":"PoissonInverse(RAND(),Lambda_Simulation)","v":4}]
[null,null,null,null,null,389,{"$f":"PoissonInverse(RAND(),Lambda_Simulation)","v":5}]
[null,null,null,null,null,390,{"$f":"PoissonInverse(RAND(),Lambda_Simulation)","v":2}]
[null,null,null,null,null,391,{"$f":"PoissonInverse(RAND(),Lambda_Simulation)","v":5}]
[null,null,null,null,null,392,{"$f":"PoissonInverse(RAND(),Lambda_Simulation)","v":5}]
[null,null,null,null,null,393,{"$f":"PoissonInverse(RAND(),Lambda_Simulation)","v":3}]
[null,null,null,null,null,394,{"$f":"PoissonInverse(RAND(),Lambda_Simulation)","v":11}]
[null,null,null,null,null,395,{"$f":"PoissonInverse(RAND(),Lambda_Simulation)","v":2}]
[null,null,null,null,null,396,{"$f":"PoissonInverse(RAND(),Lambda_Simulation)","v":3}]
[null,null,null,null,null,397,{"$f":"PoissonInverse(RAND(),Lambda_Simulation)","v":3}]
[null,null,null,null,null,398,{"$f":"PoissonInverse(RAND(),Lambda_Simulation)","v":3}]
[null,null,null,null,null,399,{"$f":"PoissonInverse(RAND(),Lambda_Simulation)","v":5}]
[null,null,null,null,null,400,{"$f":"PoissonInverse(RAND(),Lambda_Simulation)","v":2}]
[null,null,null,null,null,401,{"$f":"PoissonInverse(RAND(),Lambda_Simulation)","v":6}]
[null,null,null,null,null,402,{"$f":"PoissonInverse(RAND(),Lambda_Simulation)","v":1}]
[null,null,null,null,null,403,{"$f":"PoissonInverse(RAND(),Lambda_Simulation)","v":6}]
[null,null,null,null,null,404,{"$f":"PoissonInverse(RAND(),Lambda_Simulation)","v":1}]
[null,null,null,null,null,405,{"$f":"PoissonInverse(RAND(),Lambda_Simulation)","v":7}]
[null,null,null,null,null,406,{"$f":"PoissonInverse(RAND(),Lambda_Simulation)","v":5}]
[null,null,null,null,null,407,{"$f":"PoissonInverse(RAND(),Lambda_Simulation)","v":4}]
[null,null,null,null,null,408,{"$f":"PoissonInverse(RAND(),Lambda_Simulation)","v":7}]
[null,null,null,null,null,409,{"$f":"PoissonInverse(RAND(),Lambda_Simulation)","v":5}]
[null,null,null,null,null,410,{"$f":"PoissonInverse(RAND(),Lambda_Simulation)","v":5}]
[null,null,null,null,null,411,{"$f":"PoissonInverse(RAND(),Lambda_Simulation)","v":4}]
[null,null,null,null,null,412,{"$f":"PoissonInverse(RAND(),Lambda_Simulation)","v":1}]
[null,null,null,null,null,413,{"$f":"PoissonInverse(RAND(),Lambda_Simulation)","v":6}]
[null,null,null,null,null,414,{"$f":"PoissonInverse(RAND(),Lambda_Simulation)","v":6}]
[null,null,null,null,null,415,{"$f":"PoissonInverse(RAND(),Lambda_Simulation)","v":2}]
[null,null,null,null,null,416,{"$f":"PoissonInverse(RAND(),Lambda_Simulation)","v":3}]
[null,null,null,null,null,417,{"$f":"PoissonInverse(RAND(),Lambda_Simulation)","v":4}]
[null,null,null,null,null,418,{"$f":"PoissonInverse(RAND(),Lambda_Simulation)","v":4}]
[null,null,null,null,null,419,{"$f":"PoissonInverse(RAND(),Lambda_Simulation)","v":5}]
[null,null,null,null,null,420,{"$f":"PoissonInverse(RAND(),Lambda_Simulation)","v":4}]
[null,null,null,null,null,421,{"$f":"PoissonInverse(RAND(),Lambda_Simulation)","v":1}]
[null,null,null,null,null,422,{"$f":"PoissonInverse(RAND(),Lambda_Simulation)","v":6}]
[null,null,null,null,null,423,{"$f":"PoissonInverse(RAND(),Lambda_Simulation)","v":4}]
[null,null,null,null,null,424,{"$f":"PoissonInverse(RAND(),Lambda_Simulation)","v":1}]
[null,null,null,null,null,425,{"$f":"PoissonInverse(RAND(),Lambda_Simulation)","v":3}]
[null,null,null,null,null,426,{"$f":"PoissonInverse(RAND(),Lambda_Simulation)","v":5}]
[null,null,null,null,null,427,{"$f":"PoissonInverse(RAND(),Lambda_Simulation)","v":6}]
[null,null,null,null,null,428,{"$f":"PoissonInverse(RAND(),Lambda_Simulation)","v":4}]
[null,null,null,null,null,429,{"$f":"PoissonInverse(RAND(),Lambda_Simulation)","v":6}]
[null,null,null,null,null,430,{"$f":"PoissonInverse(RAND(),Lambda_Simulation)","v":5}]
[null,null,null,null,null,431,{"$f":"PoissonInverse(RAND(),Lambda_Simulation)","v":4}]
[null,null,null,null,null,432,{"$f":"PoissonInverse(RAND(),Lambda_Simulation)","v":2}]
[null,null,null,null,null,433,{"$f":"PoissonInverse(RAND(),Lambda_Simulation)","v":3}]
[null,null,null,null,null,434,{"$f":"PoissonInverse(RAND(),Lambda_Simulation)","v":2}]
[null,null,null,null,null,435,{"$f":"PoissonInverse(RAND(),Lambda_Simulation)","v":5}]
[null,null,null,null,null,436,{"$f":"PoissonInverse(RAND(),Lambda_Simulation)","v":2}]
[null,null,null,null,null,437,{"$f":"PoissonInverse(RAND(),Lambda_Simulation)","v":4}]
[null,null,null,null,null,438,{"$f":"PoissonInverse(RAND(),Lambda_Simulation)","v":3}]
[null,null,null,null,null,439,{"$f":"PoissonInverse(RAND(),Lambda_Simulation)","v":1}]
[null,null,null,null,null,440,{"$f":"PoissonInverse(RAND(),Lambda_Simulation)","v":2}]
[null,null,null,null,null,441,{"$f":"PoissonInverse(RAND(),Lambda_Simulation)","v":4}]
[null,null,null,null,null,442,{"$f":"PoissonInverse(RAND(),Lambda_Simulation)","v":2}]
[null,null,null,null,null,443,{"$f":"PoissonInverse(RAND(),Lambda_Simulation)","v":4}]
[null,null,null,null,null,444,{"$f":"PoissonInverse(RAND(),Lambda_Simulation)","v":5}]
[null,null,null,null,null,445,{"$f":"PoissonInverse(RAND(),Lambda_Simulation)","v":3}]
[null,null,null,null,null,446,{"$f":"PoissonInverse(RAND(),Lambda_Simulation)","v":4}]
[null,null,null,null,null,447,{"$f":"PoissonInverse(RAND(),Lambda_Simulation)","v":10}]
[null,null,null,null,null,448,{"$f":"PoissonInverse(RAND(),Lambda_Simulation)","v":3}]
[null,null,null,null,null,449,{"$f":"PoissonInverse(RAND(),Lambda_Simulation)","v":8}]
[null,null,null,null,null,{"$f":"N(F466)+1","v":450},{"$f":"PoissonInverse(RAND(),Lambda_Simulation)","v":6}]
[null,null,null,null,null,451,{"$f":"PoissonInverse(RAND(),Lambda_Simulation)","v":5}]
[null,null,null,null,null,452,{"$f":"PoissonInverse(RAND(),Lambda_Simulation)","v":2}]
[null,null,null,null,null,453,{"$f":"PoissonInverse(RAND(),Lambda_Simulation)","v":4}]
[null,null,null,null,null,454,{"$f":"PoissonInverse(RAND(),Lambda_Simulation)","v":4}]
[null,null,null,null,null,455,{"$f":"PoissonInverse(RAND(),Lambda_Simulation)","v":5}]
[null,null,null,null,null,456,{"$f":"PoissonInverse(RAND(),Lambda_Simulation)","v":3}]
[null,null,null,null,null,457,{"$f":"PoissonInverse(RAND(),Lambda_Simulation)","v":3}]
[null,null,null,null,null,458,{"$f":"PoissonInverse(RAND(),Lambda_Simulation)","v":4}]
[null,null,null,null,null,459,{"$f":"PoissonInverse(RAND(),Lambda_Simulation)","v":5}]
[null,null,null,null,null,460,{"$f":"PoissonInverse(RAND(),Lambda_Simulation)","v":0}]
[null,null,null,null,null,461,{"$f":"PoissonInverse(RAND(),Lambda_Simulation)","v":4}]
[null,null,null,null,null,462,{"$f":"PoissonInverse(RAND(),Lambda_Simulation)","v":4}]
[null,null,null,null,null,463,{"$f":"PoissonInverse(RAND(),Lambda_Simulation)","v":2}]
[null,null,null,null,null,464,{"$f":"PoissonInverse(RAND(),Lambda_Simulation)","v":3}]
[null,null,null,null,null,465,{"$f":"PoissonInverse(RAND(),Lambda_Simulation)","v":5}]
[null,null,null,null,null,466,{"$f":"PoissonInverse(RAND(),Lambda_Simulation)","v":3}]
[null,null,null,null,null,467,{"$f":"PoissonInverse(RAND(),Lambda_Simulation)","v":2}]
[null,null,null,null,null,468,{"$f":"PoissonInverse(RAND(),Lambda_Simulation)","v":2}]
[null,null,null,null,null,469,{"$f":"PoissonInverse(RAND(),Lambda_Simulation)","v":5}]
[null,null,null,null,null,470,{"$f":"PoissonInverse(RAND(),Lambda_Simulation)","v":4}]
[null,null,null,null,null,471,{"$f":"PoissonInverse(RAND(),Lambda_Simulation)","v":2}]
[null,null,null,null,null,472,{"$f":"PoissonInverse(RAND(),Lambda_Simulation)","v":2}]
[null,null,null,null,null,473,{"$f":"PoissonInverse(RAND(),Lambda_Simulation)","v":4}]
[null,null,null,null,null,474,{"$f":"PoissonInverse(RAND(),Lambda_Simulation)","v":3}]
[null,null,null,null,null,475,{"$f":"PoissonInverse(RAND(),Lambda_Simulation)","v":1}]
[null,null,null,null,null,476,{"$f":"PoissonInverse(RAND(),Lambda_Simulation)","v":1}]
[null,null,null,null,null,477,{"$f":"PoissonInverse(RAND(),Lambda_Simulation)","v":5}]
[null,null,null,null,null,478,{"$f":"PoissonInverse(RAND(),Lambda_Simulation)","v":3}]
[null,null,null,null,null,479,{"$f":"PoissonInverse(RAND(),Lambda_Simulation)","v":4}]
[null,null,null,null,null,480,{"$f":"PoissonInverse(RAND(),Lambda_Simulation)","v":3}]
[null,null,null,null,null,481,{"$f":"PoissonInverse(RAND(),Lambda_Simulation)","v":2}]
[null,null,null,null,null,482,{"$f":"PoissonInverse(RAND(),Lambda_Simulation)","v":2}]
[null,null,null,null,null,483,{"$f":"PoissonInverse(RAND(),Lambda_Simulation)","v":4}]
[null,null,null,null,null,484,{"$f":"PoissonInverse(RAND(),Lambda_Simulation)","v":5}]
[null,null,null,null,null,485,{"$f":"PoissonInverse(RAND(),Lambda_Simulation)","v":4}]
[null,null,null,null,null,486,{"$f":"PoissonInverse(RAND(),Lambda_Simulation)","v":2}]
[null,null,null,null,null,487,{"$f":"PoissonInverse(RAND(),Lambda_Simulation)","v":6}]
[null,null,null,null,null,488,{"$f":"PoissonInverse(RAND(),Lambda_Simulation)","v":4}]
[null,null,null,null,null,489,{"$f":"PoissonInverse(RAND(),Lambda_Simulation)","v":4}]
[null,null,null,null,null,490,{"$f":"PoissonInverse(RAND(),Lambda_Simulation)","v":7}]
[null,null,null,null,null,491,{"$f":"PoissonInverse(RAND(),Lambda_Simulation)","v":9}]
[null,null,null,null,null,492,{"$f":"PoissonInverse(RAND(),Lambda_Simulation)","v":6}]
[null,null,null,null,null,493,{"$f":"PoissonInverse(RAND(),Lambda_Simulation)","v":3}]
[null,null,null,null,null,494,{"$f":"PoissonInverse(RAND(),Lambda_Simulation)","v":4}]
[null,null,null,null,null,495,{"$f":"PoissonInverse(RAND(),Lambda_Simulation)","v":2}]
[null,null,null,null,null,496,{"$f":"PoissonInverse(RAND(),Lambda_Simulation)","v":1}]
[null,null,null,null,null,497,{"$f":"PoissonInverse(RAND(),Lambda_Simulation)","v":6}]
[null,null,null,null,null,498,{"$f":"PoissonInverse(RAND(),Lambda_Simulation)","v":4}]
[null,null,null,null,null,499,{"$f":"PoissonInverse(RAND(),Lambda_Simulation)","v":5}]
[null,null,null,null,null,500,{"$f":"PoissonInverse(RAND(),Lambda_Simulation)","v":6}]
[null,null,null,null,null,501,{"$f":"PoissonInverse(RAND(),Lambda_Simulation)","v":6}]
[null,null,null,null,null,502,{"$f":"PoissonInverse(RAND(),Lambda_Simulation)","v":2}]
[null,null,null,null,null,503,{"$f":"PoissonInverse(RAND(),Lambda_Simulation)","v":7}]
[null,null,null,null,null,504,{"$f":"PoissonInverse(RAND(),Lambda_Simulation)","v":4}]
[null,null,null,null,null,505,{"$f":"PoissonInverse(RAND(),Lambda_Simulation)","v":4}]
[null,null,null,null,null,506,{"$f":"PoissonInverse(RAND(),Lambda_Simulation)","v":4}]
[null,null,null,null,null,507,{"$f":"PoissonInverse(RAND(),Lambda_Simulation)","v":9}]
[null,null,null,null,null,508,{"$f":"PoissonInverse(RAND(),Lambda_Simulation)","v":4}]
[null,null,null,null,null,509,{"$f":"PoissonInverse(RAND(),Lambda_Simulation)","v":4}]
[null,null,null,null,null,510,{"$f":"PoissonInverse(RAND(),Lambda_Simulation)","v":4}]
[null,null,null,null,null,511,{"$f":"PoissonInverse(RAND(),Lambda_Simulation)","v":3}]
[null,null,null,null,null,512,{"$f":"PoissonInverse(RAND(),Lambda_Simulation)","v":3}]
[null,null,null,null,null,513,{"$f":"PoissonInverse(RAND(),Lambda_Simulation)","v":3}]
[null,null,null,null,null,{"$f":"N(F530)+1","v":514},{"$f":"PoissonInverse(RAND(),Lambda_Simulation)","v":5}]
[null,null,null,null,null,515,{"$f":"PoissonInverse(RAND(),Lambda_Simulation)","v":3}]
[null,null,null,null,null,516,{"$f":"PoissonInverse(RAND(),Lambda_Simulation)","v":3}]
[null,null,null,null,null,517,{"$f":"PoissonInverse(RAND(),Lambda_Simulation)","v":3}]
[null,null,null,null,null,518,{"$f":"PoissonInverse(RAND(),Lambda_Simulation)","v":4}]
[null,null,null,null,null,519,{"$f":"PoissonInverse(RAND(),Lambda_Simulation)","v":4}]
[null,null,null,null,null,520,{"$f":"PoissonInverse(RAND(),Lambda_Simulation)","v":5}]
[null,null,null,null,null,521,{"$f":"PoissonInverse(RAND(),Lambda_Simulation)","v":5}]
[null,null,null,null,null,522,{"$f":"PoissonInverse(RAND(),Lambda_Simulation)","v":3}]
[null,null,null,null,null,523,{"$f":"PoissonInverse(RAND(),Lambda_Simulation)","v":2}]
[null,null,null,null,null,524,{"$f":"PoissonInverse(RAND(),Lambda_Simulation)","v":6}]
[null,null,null,null,null,525,{"$f":"PoissonInverse(RAND(),Lambda_Simulation)","v":4}]
[null,null,null,null,null,526,{"$f":"PoissonInverse(RAND(),Lambda_Simulation)","v":8}]
[null,null,null,null,null,527,{"$f":"PoissonInverse(RAND(),Lambda_Simulation)","v":7}]
[null,null,null,null,null,528,{"$f":"PoissonInverse(RAND(),Lambda_Simulation)","v":4}]
[null,null,null,null,null,529,{"$f":"PoissonInverse(RAND(),Lambda_Simulation)","v":4}]
[null,null,null,null,null,530,{"$f":"PoissonInverse(RAND(),Lambda_Simulation)","v":3}]
[null,null,null,null,null,531,{"$f":"PoissonInverse(RAND(),Lambda_Simulation)","v":4}]
[null,null,null,null,null,532,{"$f":"PoissonInverse(RAND(),Lambda_Simulation)","v":5}]
[null,null,null,null,null,533,{"$f":"PoissonInverse(RAND(),Lambda_Simulation)","v":6}]
[null,null,null,null,null,534,{"$f":"PoissonInverse(RAND(),Lambda_Simulation)","v":6}]
[null,null,null,null,null,535,{"$f":"PoissonInverse(RAND(),Lambda_Simulation)","v":8}]
[null,null,null,null,null,536,{"$f":"PoissonInverse(RAND(),Lambda_Simulation)","v":6}]
[null,null,null,null,null,537,{"$f":"PoissonInverse(RAND(),Lambda_Simulation)","v":4}]
[null,null,null,null,null,538,{"$f":"PoissonInverse(RAND(),Lambda_Simulation)","v":5}]
[null,null,null,null,null,539,{"$f":"PoissonInverse(RAND(),Lambda_Simulation)","v":2}]
[null,null,null,null,null,540,{"$f":"PoissonInverse(RAND(),Lambda_Simulation)","v":6}]
[null,null,null,null,null,541,{"$f":"PoissonInverse(RAND(),Lambda_Simulation)","v":4}]
[null,null,null,null,null,542,{"$f":"PoissonInverse(RAND(),Lambda_Simulation)","v":4}]
[null,null,null,null,null,543,{"$f":"PoissonInverse(RAND(),Lambda_Simulation)","v":3}]
[null,null,null,null,null,544,{"$f":"PoissonInverse(RAND(),Lambda_Simulation)","v":3}]
[null,null,null,null,null,545,{"$f":"PoissonInverse(RAND(),Lambda_Simulation)","v":4}]
[null,null,null,null,null,546,{"$f":"PoissonInverse(RAND(),Lambda_Simulation)","v":4}]
[null,null,null,null,null,547,{"$f":"PoissonInverse(RAND(),Lambda_Simulation)","v":6}]
[null,null,null,null,null,548,{"$f":"PoissonInverse(RAND(),Lambda_Simulation)","v":3}]
[null,null,null,null,null,549,{"$f":"PoissonInverse(RAND(),Lambda_Simulation)","v":5}]
[null,null,null,null,null,550,{"$f":"PoissonInverse(RAND(),Lambda_Simulation)","v":3}]
[null,null,null,null,null,551,{"$f":"PoissonInverse(RAND(),Lambda_Simulation)","v":3}]
[null,null,null,null,null,552,{"$f":"PoissonInverse(RAND(),Lambda_Simulation)","v":3}]
[null,null,null,null,null,553,{"$f":"PoissonInverse(RAND(),Lambda_Simulation)","v":3}]
[null,null,null,null,null,554,{"$f":"PoissonInverse(RAND(),Lambda_Simulation)","v":3}]
[null,null,null,null,null,555,{"$f":"PoissonInverse(RAND(),Lambda_Simulation)","v":1}]
[null,null,null,null,null,556,{"$f":"PoissonInverse(RAND(),Lambda_Simulation)","v":4}]
[null,null,null,null,null,557,{"$f":"PoissonInverse(RAND(),Lambda_Simulation)","v":5}]
[null,null,null,null,null,558,{"$f":"PoissonInverse(RAND(),Lambda_Simulation)","v":6}]
[null,null,null,null,null,559,{"$f":"PoissonInverse(RAND(),Lambda_Simulation)","v":1}]
[null,null,null,null,null,560,{"$f":"PoissonInverse(RAND(),Lambda_Simulation)","v":2}]
[null,null,null,null,null,561,{"$f":"PoissonInverse(RAND(),Lambda_Simulation)","v":3}]
[null,null,null,null,null,562,{"$f":"PoissonInverse(RAND(),Lambda_Simulation)","v":4}]
[null,null,null,null,null,563,{"$f":"PoissonInverse(RAND(),Lambda_Simulation)","v":5}]
[null,null,null,null,null,564,{"$f":"PoissonInverse(RAND(),Lambda_Simulation)","v":5}]
[null,null,null,null,null,565,{"$f":"PoissonInverse(RAND(),Lambda_Simulation)","v":0}]
[null,null,null,null,null,566,{"$f":"PoissonInverse(RAND(),Lambda_Simulation)","v":4}]
[null,null,null,null,null,567,{"$f":"PoissonInverse(RAND(),Lambda_Simulation)","v":2}]
[null,null,null,null,null,568,{"$f":"PoissonInverse(RAND(),Lambda_Simulation)","v":2}]
[null,null,null,null,null,569,{"$f":"PoissonInverse(RAND(),Lambda_Simulation)","v":2}]
[null,null,null,null,null,570,{"$f":"PoissonInverse(RAND(),Lambda_Simulation)","v":5}]
[null,null,null,null,null,571,{"$f":"PoissonInverse(RAND(),Lambda_Simulation)","v":6}]
[null,null,null,null,null,572,{"$f":"PoissonInverse(RAND(),Lambda_Simulation)","v":3}]
[null,null,null,null,null,573,{"$f":"PoissonInverse(RAND(),Lambda_Simulation)","v":3}]
[null,null,null,null,null,574,{"$f":"PoissonInverse(RAND(),Lambda_Simulation)","v":12}]
[null,null,null,null,null,575,{"$f":"PoissonInverse(RAND(),Lambda_Simulation)","v":2}]
[null,null,null,null,null,576,{"$f":"PoissonInverse(RAND(),Lambda_Simulation)","v":9}]
[null,null,null,null,null,577,{"$f":"PoissonInverse(RAND(),Lambda_Simulation)","v":5}]
[null,null,null,null,null,{"$f":"N(F594)+1","v":578},{"$f":"PoissonInverse(RAND(),Lambda_Simulation)","v":2}]
[null,null,null,null,null,579,{"$f":"PoissonInverse(RAND(),Lambda_Simulation)","v":4}]
[null,null,null,null,null,580,{"$f":"PoissonInverse(RAND(),Lambda_Simulation)","v":6}]
[null,null,null,null,null,581,{"$f":"PoissonInverse(RAND(),Lambda_Simulation)","v":11}]
[null,null,null,null,null,582,{"$f":"PoissonInverse(RAND(),Lambda_Simulation)","v":4}]
[null,null,null,null,null,583,{"$f":"PoissonInverse(RAND(),Lambda_Simulation)","v":5}]
[null,null,null,null,null,584,{"$f":"PoissonInverse(RAND(),Lambda_Simulation)","v":5}]
[null,null,null,null,null,585,{"$f":"PoissonInverse(RAND(),Lambda_Simulation)","v":3}]
[null,null,null,null,null,586,{"$f":"PoissonInverse(RAND(),Lambda_Simulation)","v":7}]
[null,null,null,null,null,587,{"$f":"PoissonInverse(RAND(),Lambda_Simulation)","v":4}]
[null,null,null,null,null,588,{"$f":"PoissonInverse(RAND(),Lambda_Simulation)","v":7}]
[null,null,null,null,null,589,{"$f":"PoissonInverse(RAND(),Lambda_Simulation)","v":3}]
[null,null,null,null,null,590,{"$f":"PoissonInverse(RAND(),Lambda_Simulation)","v":2}]
[null,null,null,null,null,591,{"$f":"PoissonInverse(RAND(),Lambda_Simulation)","v":6}]
[null,null,null,null,null,592,{"$f":"PoissonInverse(RAND(),Lambda_Simulation)","v":3}]
[null,null,null,null,null,593,{"$f":"PoissonInverse(RAND(),Lambda_Simulation)","v":4}]
[null,null,null,null,null,594,{"$f":"PoissonInverse(RAND(),Lambda_Simulation)","v":2}]
[null,null,null,null,null,595,{"$f":"PoissonInverse(RAND(),Lambda_Simulation)","v":7}]
[null,null,null,null,null,596,{"$f":"PoissonInverse(RAND(),Lambda_Simulation)","v":1}]
[null,null,null,null,null,597,{"$f":"PoissonInverse(RAND(),Lambda_Simulation)","v":3}]
[null,null,null,null,null,598,{"$f":"PoissonInverse(RAND(),Lambda_Simulation)","v":2}]
[null,null,null,null,null,599,{"$f":"PoissonInverse(RAND(),Lambda_Simulation)","v":3}]
[null,null,null,null,null,600,{"$f":"PoissonInverse(RAND(),Lambda_Simulation)","v":5}]
[null,null,null,null,null,601,{"$f":"PoissonInverse(RAND(),Lambda_Simulation)","v":7}]
[null,null,null,null,null,602,{"$f":"PoissonInverse(RAND(),Lambda_Simulation)","v":6}]
[null,null,null,null,null,603,{"$f":"PoissonInverse(RAND(),Lambda_Simulation)","v":6}]
[null,null,null,null,null,604,{"$f":"PoissonInverse(RAND(),Lambda_Simulation)","v":4}]
[null,null,null,null,null,605,{"$f":"PoissonInverse(RAND(),Lambda_Simulation)","v":9}]
[null,null,null,null,null,606,{"$f":"PoissonInverse(RAND(),Lambda_Simulation)","v":5}]
[null,null,null,null,null,607,{"$f":"PoissonInverse(RAND(),Lambda_Simulation)","v":5}]
[null,null,null,null,null,608,{"$f":"PoissonInverse(RAND(),Lambda_Simulation)","v":6}]
[null,null,null,null,null,609,{"$f":"PoissonInverse(RAND(),Lambda_Simulation)","v":3}]
[null,null,null,null,null,610,{"$f":"PoissonInverse(RAND(),Lambda_Simulation)","v":6}]
[null,null,null,null,null,611,{"$f":"PoissonInverse(RAND(),Lambda_Simulation)","v":1}]
[null,null,null,null,null,612,{"$f":"PoissonInverse(RAND(),Lambda_Simulation)","v":6}]
[null,null,null,null,null,613,{"$f":"PoissonInverse(RAND(),Lambda_Simulation)","v":4}]
[null,null,null,null,null,614,{"$f":"PoissonInverse(RAND(),Lambda_Simulation)","v":3}]
[null,null,null,null,null,615,{"$f":"PoissonInverse(RAND(),Lambda_Simulation)","v":4}]
[null,null,null,null,null,616,{"$f":"PoissonInverse(RAND(),Lambda_Simulation)","v":4}]
[null,null,null,null,null,617,{"$f":"PoissonInverse(RAND(),Lambda_Simulation)","v":5}]
[null,null,null,null,null,618,{"$f":"PoissonInverse(RAND(),Lambda_Simulation)","v":3}]
[null,null,null,null,null,619,{"$f":"PoissonInverse(RAND(),Lambda_Simulation)","v":1}]
[null,null,null,null,null,620,{"$f":"PoissonInverse(RAND(),Lambda_Simulation)","v":1}]
[null,null,null,null,null,621,{"$f":"PoissonInverse(RAND(),Lambda_Simulation)","v":3}]
[null,null,null,null,null,622,{"$f":"PoissonInverse(RAND(),Lambda_Simulation)","v":8}]
[null,null,null,null,null,623,{"$f":"PoissonInverse(RAND(),Lambda_Simulation)","v":6}]
[null,null,null,null,null,624,{"$f":"PoissonInverse(RAND(),Lambda_Simulation)","v":6}]
[null,null,null,null,null,625,{"$f":"PoissonInverse(RAND(),Lambda_Simulation)","v":5}]
[null,null,null,null,null,626,{"$f":"PoissonInverse(RAND(),Lambda_Simulation)","v":8}]
[null,null,null,null,null,627,{"$f":"PoissonInverse(RAND(),Lambda_Simulation)","v":6}]
[null,null,null,null,null,628,{"$f":"PoissonInverse(RAND(),Lambda_Simulation)","v":6}]
[null,null,null,null,null,629,{"$f":"PoissonInverse(RAND(),Lambda_Simulation)","v":4}]
[null,null,null,null,null,630,{"$f":"PoissonInverse(RAND(),Lambda_Simulation)","v":3}]
[null,null,null,null,null,631,{"$f":"PoissonInverse(RAND(),Lambda_Simulation)","v":4}]
[null,null,null,null,null,632,{"$f":"PoissonInverse(RAND(),Lambda_Simulation)","v":3}]
[null,null,null,null,null,633,{"$f":"PoissonInverse(RAND(),Lambda_Simulation)","v":5}]
[null,null,null,null,null,634,{"$f":"PoissonInverse(RAND(),Lambda_Simulation)","v":3}]
[null,null,null,null,null,635,{"$f":"PoissonInverse(RAND(),Lambda_Simulation)","v":6}]
[null,null,null,null,null,636,{"$f":"PoissonInverse(RAND(),Lambda_Simulation)","v":2}]
[null,null,null,null,null,637,{"$f":"PoissonInverse(RAND(),Lambda_Simulation)","v":0}]
[null,null,null,null,null,638,{"$f":"PoissonInverse(RAND(),Lambda_Simulation)","v":5}]
[null,null,null,null,null,639,{"$f":"PoissonInverse(RAND(),Lambda_Simulation)","v":7}]
[null,null,null,null,null,640,{"$f":"PoissonInverse(RAND(),Lambda_Simulation)","v":4}]
[null,null,null,null,null,641,{"$f":"PoissonInverse(RAND(),Lambda_Simulation)","v":2}]
[null,null,null,null,null,{"$f":"N(F658)+1","v":642},{"$f":"PoissonInverse(RAND(),Lambda_Simulation)","v":7}]
[null,null,null,null,null,643,{"$f":"PoissonInverse(RAND(),Lambda_Simulation)","v":3}]
[null,null,null,null,null,644,{"$f":"PoissonInverse(RAND(),Lambda_Simulation)","v":4}]
[null,null,null,null,null,645,{"$f":"PoissonInverse(RAND(),Lambda_Simulation)","v":9}]
[null,null,null,null,null,646,{"$f":"PoissonInverse(RAND(),Lambda_Simulation)","v":7}]
[null,null,null,null,null,647,{"$f":"PoissonInverse(RAND(),Lambda_Simulation)","v":3}]
[null,null,null,null,null,648,{"$f":"PoissonInverse(RAND(),Lambda_Simulation)","v":4}]
[null,null,null,null,null,649,{"$f":"PoissonInverse(RAND(),Lambda_Simulation)","v":3}]
[null,null,null,null,null,650,{"$f":"PoissonInverse(RAND(),Lambda_Simulation)","v":3}]
[null,null,null,null,null,651,{"$f":"PoissonInverse(RAND(),Lambda_Simulation)","v":7}]
[null,null,null,null,null,652,{"$f":"PoissonInverse(RAND(),Lambda_Simulation)","v":4}]
[null,null,null,null,null,653,{"$f":"PoissonInverse(RAND(),Lambda_Simulation)","v":6}]
[null,null,null,null,null,654,{"$f":"PoissonInverse(RAND(),Lambda_Simulation)","v":4}]
[null,null,null,null,null,655,{"$f":"PoissonInverse(RAND(),Lambda_Simulation)","v":3}]
[null,null,null,null,null,656,{"$f":"PoissonInverse(RAND(),Lambda_Simulation)","v":3}]
[null,null,null,null,null,657,{"$f":"PoissonInverse(RAND(),Lambda_Simulation)","v":8}]
[null,null,null,null,null,658,{"$f":"PoissonInverse(RAND(),Lambda_Simulation)","v":2}]
[null,null,null,null,null,659,{"$f":"PoissonInverse(RAND(),Lambda_Simulation)","v":8}]
[null,null,null,null,null,660,{"$f":"PoissonInverse(RAND(),Lambda_Simulation)","v":8}]
[null,null,null,null,null,661,{"$f":"PoissonInverse(RAND(),Lambda_Simulation)","v":2}]
[null,null,null,null,null,662,{"$f":"PoissonInverse(RAND(),Lambda_Simulation)","v":10}]
[null,null,null,null,null,663,{"$f":"PoissonInverse(RAND(),Lambda_Simulation)","v":5}]
[null,null,null,null,null,664,{"$f":"PoissonInverse(RAND(),Lambda_Simulation)","v":6}]
[null,null,null,null,null,665,{"$f":"PoissonInverse(RAND(),Lambda_Simulation)","v":6}]
[null,null,null,null,null,666,{"$f":"PoissonInverse(RAND(),Lambda_Simulation)","v":7}]
[null,null,null,null,null,667,{"$f":"PoissonInverse(RAND(),Lambda_Simulation)","v":2}]
[null,null,null,null,null,668,{"$f":"PoissonInverse(RAND(),Lambda_Simulation)","v":5}]
[null,null,null,null,null,669,{"$f":"PoissonInverse(RAND(),Lambda_Simulation)","v":1}]
[null,null,null,null,null,670,{"$f":"PoissonInverse(RAND(),Lambda_Simulation)","v":3}]
[null,null,null,null,null,671,{"$f":"PoissonInverse(RAND(),Lambda_Simulation)","v":8}]
[null,null,null,null,null,672,{"$f":"PoissonInverse(RAND(),Lambda_Simulation)","v":4}]
[null,null,null,null,null,673,{"$f":"PoissonInverse(RAND(),Lambda_Simulation)","v":4}]
[null,null,null,null,null,674,{"$f":"PoissonInverse(RAND(),Lambda_Simulation)","v":9}]
[null,null,null,null,null,675,{"$f":"PoissonInverse(RAND(),Lambda_Simulation)","v":3}]
[null,null,null,null,null,676,{"$f":"PoissonInverse(RAND(),Lambda_Simulation)","v":3}]
[null,null,null,null,null,677,{"$f":"PoissonInverse(RAND(),Lambda_Simulation)","v":4}]
[null,null,null,null,null,678,{"$f":"PoissonInverse(RAND(),Lambda_Simulation)","v":6}]
[null,null,null,null,null,679,{"$f":"PoissonInverse(RAND(),Lambda_Simulation)","v":1}]
[null,null,null,null,null,680,{"$f":"PoissonInverse(RAND(),Lambda_Simulation)","v":4}]
[null,null,null,null,null,681,{"$f":"PoissonInverse(RAND(),Lambda_Simulation)","v":2}]
[null,null,null,null,null,682,{"$f":"PoissonInverse(RAND(),Lambda_Simulation)","v":4}]
[null,null,null,null,null,683,{"$f":"PoissonInverse(RAND(),Lambda_Simulation)","v":3}]
[null,null,null,null,null,684,{"$f":"PoissonInverse(RAND(),Lambda_Simulation)","v":0}]
[null,null,null,null,null,685,{"$f":"PoissonInverse(RAND(),Lambda_Simulation)","v":3}]
[null,null,null,null,null,686,{"$f":"PoissonInverse(RAND(),Lambda_Simulation)","v":9}]
[null,null,null,null,null,687,{"$f":"PoissonInverse(RAND(),Lambda_Simulation)","v":5}]
[null,null,null,null,null,688,{"$f":"PoissonInverse(RAND(),Lambda_Simulation)","v":3}]
[null,null,null,null,null,689,{"$f":"PoissonInverse(RAND(),Lambda_Simulation)","v":5}]
[null,null,null,null,null,690,{"$f":"PoissonInverse(RAND(),Lambda_Simulation)","v":5}]
[null,null,null,null,null,691,{"$f":"PoissonInverse(RAND(),Lambda_Simulation)","v":6}]
[null,null,null,null,null,692,{"$f":"PoissonInverse(RAND(),Lambda_Simulation)","v":4}]
[null,null,null,null,null,693,{"$f":"PoissonInverse(RAND(),Lambda_Simulation)","v":8}]
[null,null,null,null,null,694,{"$f":"PoissonInverse(RAND(),Lambda_Simulation)","v":1}]
[null,null,null,null,null,695,{"$f":"PoissonInverse(RAND(),Lambda_Simulation)","v":4}]
[null,null,null,null,null,696,{"$f":"PoissonInverse(RAND(),Lambda_Simulation)","v":7}]
[null,null,null,null,null,697,{"$f":"PoissonInverse(RAND(),Lambda_Simulation)","v":6}]
[null,null,null,null,null,698,{"$f":"PoissonInverse(RAND(),Lambda_Simulation)","v":9}]
[null,null,null,null,null,699,{"$f":"PoissonInverse(RAND(),Lambda_Simulation)","v":5}]
[null,null,null,null,null,700,{"$f":"PoissonInverse(RAND(),Lambda_Simulation)","v":6}]
[null,null,null,null,null,701,{"$f":"PoissonInverse(RAND(),Lambda_Simulation)","v":3}]
[null,null,null,null,null,702,{"$f":"PoissonInverse(RAND(),Lambda_Simulation)","v":2}]
[null,null,null,null,null,703,{"$f":"PoissonInverse(RAND(),Lambda_Simulation)","v":0}]
[null,null,null,null,null,704,{"$f":"PoissonInverse(RAND(),Lambda_Simulation)","v":8}]
[null,null,null,null,null,705,{"$f":"PoissonInverse(RAND(),Lambda_Simulation)","v":3}]
[null,null,null,null,null,{"$f":"N(F722)+1","v":706},{"$f":"PoissonInverse(RAND(),Lambda_Simulation)","v":5}]
[null,null,null,null,null,707,{"$f":"PoissonInverse(RAND(),Lambda_Simulation)","v":5}]
[null,null,null,null,null,708,{"$f":"PoissonInverse(RAND(),Lambda_Simulation)","v":2}]
[null,null,null,null,null,709,{"$f":"PoissonInverse(RAND(),Lambda_Simulation)","v":4}]
[null,null,null,null,null,710,{"$f":"PoissonInverse(RAND(),Lambda_Simulation)","v":2}]
[null,null,null,null,null,711,{"$f":"PoissonInverse(RAND(),Lambda_Simulation)","v":7}]
[null,null,null,null,null,712,{"$f":"PoissonInverse(RAND(),Lambda_Simulation)","v":3}]
[null,null,null,null,null,713,{"$f":"PoissonInverse(RAND(),Lambda_Simulation)","v":2}]
[null,null,null,null,null,714,{"$f":"PoissonInverse(RAND(),Lambda_Simulation)","v":8}]
[null,null,null,null,null,715,{"$f":"PoissonInverse(RAND(),Lambda_Simulation)","v":4}]
[null,null,null,null,null,716,{"$f":"PoissonInverse(RAND(),Lambda_Simulation)","v":3}]
[null,null,null,null,null,717,{"$f":"PoissonInverse(RAND(),Lambda_Simulation)","v":2}]
[null,null,null,null,null,718,{"$f":"PoissonInverse(RAND(),Lambda_Simulation)","v":4}]
[null,null,null,null,null,719,{"$f":"PoissonInverse(RAND(),Lambda_Simulation)","v":4}]
[null,null,null,null,null,720,{"$f":"PoissonInverse(RAND(),Lambda_Simulation)","v":11}]
[null,null,null,null,null,721,{"$f":"PoissonInverse(RAND(),Lambda_Simulation)","v":5}]
[null,null,null,null,null,722,{"$f":"PoissonInverse(RAND(),Lambda_Simulation)","v":7}]
[null,null,null,null,null,723,{"$f":"PoissonInverse(RAND(),Lambda_Simulation)","v":5}]
[null,null,null,null,null,724,{"$f":"PoissonInverse(RAND(),Lambda_Simulation)","v":2}]
[null,null,null,null,null,725,{"$f":"PoissonInverse(RAND(),Lambda_Simulation)","v":2}]
[null,null,null,null,null,726,{"$f":"PoissonInverse(RAND(),Lambda_Simulation)","v":6}]
[null,null,null,null,null,727,{"$f":"PoissonInverse(RAND(),Lambda_Simulation)","v":6}]
[null,null,null,null,null,728,{"$f":"PoissonInverse(RAND(),Lambda_Simulation)","v":4}]
[null,null,null,null,null,729,{"$f":"PoissonInverse(RAND(),Lambda_Simulation)","v":3}]
[null,null,null,null,null,730,{"$f":"PoissonInverse(RAND(),Lambda_Simulation)","v":3}]
[null,null,null,null,null,731,{"$f":"PoissonInverse(RAND(),Lambda_Simulation)","v":1}]
[null,null,null,null,null,732,{"$f":"PoissonInverse(RAND(),Lambda_Simulation)","v":6}]
[null,null,null,null,null,733,{"$f":"PoissonInverse(RAND(),Lambda_Simulation)","v":6}]
[null,null,null,null,null,734,{"$f":"PoissonInverse(RAND(),Lambda_Simulation)","v":6}]
[null,null,null,null,null,735,{"$f":"PoissonInverse(RAND(),Lambda_Simulation)","v":1}]
[null,null,null,null,null,736,{"$f":"PoissonInverse(RAND(),Lambda_Simulation)","v":7}]
[null,null,null,null,null,737,{"$f":"PoissonInverse(RAND(),Lambda_Simulation)","v":3}]
[null,null,null,null,null,738,{"$f":"PoissonInverse(RAND(),Lambda_Simulation)","v":6}]
[null,null,null,null,null,739,{"$f":"PoissonInverse(RAND(),Lambda_Simulation)","v":4}]
[null,null,null,null,null,740,{"$f":"PoissonInverse(RAND(),Lambda_Simulation)","v":3}]
[null,null,null,null,null,741,{"$f":"PoissonInverse(RAND(),Lambda_Simulation)","v":2}]
[null,null,null,null,null,742,{"$f":"PoissonInverse(RAND(),Lambda_Simulation)","v":1}]
[null,null,null,null,null,743,{"$f":"PoissonInverse(RAND(),Lambda_Simulation)","v":6}]
[null,null,null,null,null,744,{"$f":"PoissonInverse(RAND(),Lambda_Simulation)","v":3}]
[null,null,null,null,null,745,{"$f":"PoissonInverse(RAND(),Lambda_Simulation)","v":7}]
[null,null,null,null,null,746,{"$f":"PoissonInverse(RAND(),Lambda_Simulation)","v":6}]
[null,null,null,null,null,747,{"$f":"PoissonInverse(RAND(),Lambda_Simulation)","v":5}]
[null,null,null,null,null,748,{"$f":"PoissonInverse(RAND(),Lambda_Simulation)","v":4}]
[null,null,null,null,null,749,{"$f":"PoissonInverse(RAND(),Lambda_Simulation)","v":4}]
[null,null,null,null,null,750,{"$f":"PoissonInverse(RAND(),Lambda_Simulation)","v":6}]
[null,null,null,null,null,751,{"$f":"PoissonInverse(RAND(),Lambda_Simulation)","v":1}]
[null,null,null,null,null,752,{"$f":"PoissonInverse(RAND(),Lambda_Simulation)","v":6}]
[null,null,null,null,null,753,{"$f":"PoissonInverse(RAND(),Lambda_Simulation)","v":3}]
[null,null,null,null,null,754,{"$f":"PoissonInverse(RAND(),Lambda_Simulation)","v":5}]
[null,null,null,null,null,755,{"$f":"PoissonInverse(RAND(),Lambda_Simulation)","v":6}]
[null,null,null,null,null,756,{"$f":"PoissonInverse(RAND(),Lambda_Simulation)","v":3}]
[null,null,null,null,null,757,{"$f":"PoissonInverse(RAND(),Lambda_Simulation)","v":5}]
[null,null,null,null,null,758,{"$f":"PoissonInverse(RAND(),Lambda_Simulation)","v":2}]
[null,null,null,null,null,759,{"$f":"PoissonInverse(RAND(),Lambda_Simulation)","v":8}]
[null,null,null,null,null,760,{"$f":"PoissonInverse(RAND(),Lambda_Simulation)","v":2}]
[null,null,null,null,null,761,{"$f":"PoissonInverse(RAND(),Lambda_Simulation)","v":1}]
[null,null,null,null,null,762,{"$f":"PoissonInverse(RAND(),Lambda_Simulation)","v":4}]
[null,null,null,null,null,763,{"$f":"PoissonInverse(RAND(),Lambda_Simulation)","v":5}]
[null,null,null,null,null,764,{"$f":"PoissonInverse(RAND(),Lambda_Simulation)","v":8}]
[null,null,null,null,null,765,{"$f":"PoissonInverse(RAND(),Lambda_Simulation)","v":4}]
[null,null,null,null,null,766,{"$f":"PoissonInverse(RAND(),Lambda_Simulation)","v":4}]
[null,null,null,null,null,767,{"$f":"PoissonInverse(RAND(),Lambda_Simulation)","v":2}]
[null,null,null,null,null,768,{"$f":"PoissonInverse(RAND(),Lambda_Simulation)","v":9}]
[null,null,null,null,null,769,{"$f":"PoissonInverse(RAND(),Lambda_Simulation)","v":12}]
[null,null,null,null,null,{"$f":"N(F786)+1","v":770},{"$f":"PoissonInverse(RAND(),Lambda_Simulation)","v":1}]
[null,null,null,null,null,771,{"$f":"PoissonInverse(RAND(),Lambda_Simulation)","v":7}]
[null,null,null,null,null,772,{"$f":"PoissonInverse(RAND(),Lambda_Simulation)","v":4}]
[null,null,null,null,null,773,{"$f":"PoissonInverse(RAND(),Lambda_Simulation)","v":4}]
[null,null,null,null,null,774,{"$f":"PoissonInverse(RAND(),Lambda_Simulation)","v":4}]
[null,null,null,null,null,775,{"$f":"PoissonInverse(RAND(),Lambda_Simulation)","v":5}]
[null,null,null,null,null,776,{"$f":"PoissonInverse(RAND(),Lambda_Simulation)","v":1}]
[null,null,null,null,null,777,{"$f":"PoissonInverse(RAND(),Lambda_Simulation)","v":5}]
[null,null,null,null,null,778,{"$f":"PoissonInverse(RAND(),Lambda_Simulation)","v":4}]
[null,null,null,null,null,779,{"$f":"PoissonInverse(RAND(),Lambda_Simulation)","v":7}]
[null,null,null,null,null,780,{"$f":"PoissonInverse(RAND(),Lambda_Simulation)","v":3}]
[null,null,null,null,null,781,{"$f":"PoissonInverse(RAND(),Lambda_Simulation)","v":4}]
[null,null,null,null,null,782,{"$f":"PoissonInverse(RAND(),Lambda_Simulation)","v":3}]
[null,null,null,null,null,783,{"$f":"PoissonInverse(RAND(),Lambda_Simulation)","v":4}]
[null,null,null,null,null,784,{"$f":"PoissonInverse(RAND(),Lambda_Simulation)","v":4}]
[null,null,null,null,null,785,{"$f":"PoissonInverse(RAND(),Lambda_Simulation)","v":5}]
[null,null,null,null,null,786,{"$f":"PoissonInverse(RAND(),Lambda_Simulation)","v":5}]
[null,null,null,null,null,787,{"$f":"PoissonInverse(RAND(),Lambda_Simulation)","v":2}]
[null,null,null,null,null,788,{"$f":"PoissonInverse(RAND(),Lambda_Simulation)","v":7}]
[null,null,null,null,null,789,{"$f":"PoissonInverse(RAND(),Lambda_Simulation)","v":1}]
[null,null,null,null,null,790,{"$f":"PoissonInverse(RAND(),Lambda_Simulation)","v":4}]
[null,null,null,null,null,791,{"$f":"PoissonInverse(RAND(),Lambda_Simulation)","v":2}]
[null,null,null,null,null,792,{"$f":"PoissonInverse(RAND(),Lambda_Simulation)","v":4}]
[null,null,null,null,null,793,{"$f":"PoissonInverse(RAND(),Lambda_Simulation)","v":5}]
[null,null,null,null,null,794,{"$f":"PoissonInverse(RAND(),Lambda_Simulation)","v":2}]
[null,null,null,null,null,795,{"$f":"PoissonInverse(RAND(),Lambda_Simulation)","v":7}]
[null,null,null,null,null,796,{"$f":"PoissonInverse(RAND(),Lambda_Simulation)","v":5}]
[null,null,null,null,null,797,{"$f":"PoissonInverse(RAND(),Lambda_Simulation)","v":8}]
[null,null,null,null,null,798,{"$f":"PoissonInverse(RAND(),Lambda_Simulation)","v":6}]
[null,null,null,null,null,799,{"$f":"PoissonInverse(RAND(),Lambda_Simulation)","v":0}]
[null,null,null,null,null,800,{"$f":"PoissonInverse(RAND(),Lambda_Simulation)","v":7}]
[null,null,null,null,null,801,{"$f":"PoissonInverse(RAND(),Lambda_Simulation)","v":1}]
[null,null,null,null,null,802,{"$f":"PoissonInverse(RAND(),Lambda_Simulation)","v":3}]
[null,null,null,null,null,803,{"$f":"PoissonInverse(RAND(),Lambda_Simulation)","v":2}]
[null,null,null,null,null,804,{"$f":"PoissonInverse(RAND(),Lambda_Simulation)","v":3}]
[null,null,null,null,null,805,{"$f":"PoissonInverse(RAND(),Lambda_Simulation)","v":6}]
[null,null,null,null,null,806,{"$f":"PoissonInverse(RAND(),Lambda_Simulation)","v":7}]
[null,null,null,null,null,807,{"$f":"PoissonInverse(RAND(),Lambda_Simulation)","v":3}]
[null,null,null,null,null,808,{"$f":"PoissonInverse(RAND(),Lambda_Simulation)","v":3}]
[null,null,null,null,null,809,{"$f":"PoissonInverse(RAND(),Lambda_Simulation)","v":4}]
[null,null,null,null,null,810,{"$f":"PoissonInverse(RAND(),Lambda_Simulation)","v":8}]
[null,null,null,null,null,811,{"$f":"PoissonInverse(RAND(),Lambda_Simulation)","v":4}]
[null,null,null,null,null,812,{"$f":"PoissonInverse(RAND(),Lambda_Simulation)","v":5}]
[null,null,null,null,null,813,{"$f":"PoissonInverse(RAND(),Lambda_Simulation)","v":6}]
[null,null,null,null,null,814,{"$f":"PoissonInverse(RAND(),Lambda_Simulation)","v":2}]
[null,null,null,null,null,815,{"$f":"PoissonInverse(RAND(),Lambda_Simulation)","v":2}]
[null,null,null,null,null,816,{"$f":"PoissonInverse(RAND(),Lambda_Simulation)","v":6}]
[null,null,null,null,null,817,{"$f":"PoissonInverse(RAND(),Lambda_Simulation)","v":3}]
[null,null,null,null,null,818,{"$f":"PoissonInverse(RAND(),Lambda_Simulation)","v":3}]
[null,null,null,null,null,819,{"$f":"PoissonInverse(RAND(),Lambda_Simulation)","v":1}]
[null,null,null,null,null,820,{"$f":"PoissonInverse(RAND(),Lambda_Simulation)","v":3}]
[null,null,null,null,null,821,{"$f":"PoissonInverse(RAND(),Lambda_Simulation)","v":4}]
[null,null,null,null,null,822,{"$f":"PoissonInverse(RAND(),Lambda_Simulation)","v":3}]
[null,null,null,null,null,823,{"$f":"PoissonInverse(RAND(),Lambda_Simulation)","v":3}]
[null,null,null,null,null,824,{"$f":"PoissonInverse(RAND(),Lambda_Simulation)","v":4}]
[null,null,null,null,null,825,{"$f":"PoissonInverse(RAND(),Lambda_Simulation)","v":4}]
[null,null,null,null,null,826,{"$f":"PoissonInverse(RAND(),Lambda_Simulation)","v":5}]
[null,null,null,null,null,827,{"$f":"PoissonInverse(RAND(),Lambda_Simulation)","v":6}]
[null,null,null,null,null,828,{"$f":"PoissonInverse(RAND(),Lambda_Simulation)","v":3}]
[null,null,null,null,null,829,{"$f":"PoissonInverse(RAND(),Lambda_Simulation)","v":4}]
[null,null,null,null,null,830,{"$f":"PoissonInverse(RAND(),Lambda_Simulation)","v":3}]
[null,null,null,null,null,831,{"$f":"PoissonInverse(RAND(),Lambda_Simulation)","v":3}]
[null,null,null,null,null,832,{"$f":"PoissonInverse(RAND(),Lambda_Simulation)","v":5}]
[null,null,null,null,null,833,{"$f":"PoissonInverse(RAND(),Lambda_Simulation)","v":7}]
[null,null,null,null,null,{"$f":"N(F850)+1","v":834},{"$f":"PoissonInverse(RAND(),Lambda_Simulation)","v":4}]
[null,null,null,null,null,835,{"$f":"PoissonInverse(RAND(),Lambda_Simulation)","v":4}]
[null,null,null,null,null,836,{"$f":"PoissonInverse(RAND(),Lambda_Simulation)","v":4}]
[null,null,null,null,null,837,{"$f":"PoissonInverse(RAND(),Lambda_Simulation)","v":4}]
[null,null,null,null,null,838,{"$f":"PoissonInverse(RAND(),Lambda_Simulation)","v":4}]
[null,null,null,null,null,839,{"$f":"PoissonInverse(RAND(),Lambda_Simulation)","v":4}]
[null,null,null,null,null,840,{"$f":"PoissonInverse(RAND(),Lambda_Simulation)","v":3}]
[null,null,null,null,null,841,{"$f":"PoissonInverse(RAND(),Lambda_Simulation)","v":1}]
[null,null,null,null,null,842,{"$f":"PoissonInverse(RAND(),Lambda_Simulation)","v":7}]
[null,null,null,null,null,843,{"$f":"PoissonInverse(RAND(),Lambda_Simulation)","v":2}]
[null,null,null,null,null,844,{"$f":"PoissonInverse(RAND(),Lambda_Simulation)","v":3}]
[null,null,null,null,null,845,{"$f":"PoissonInverse(RAND(),Lambda_Simulation)","v":3}]
[null,null,null,null,null,846,{"$f":"PoissonInverse(RAND(),Lambda_Simulation)","v":2}]
[null,null,null,null,null,847,{"$f":"PoissonInverse(RAND(),Lambda_Simulation)","v":4}]
[null,null,null,null,null,848,{"$f":"PoissonInverse(RAND(),Lambda_Simulation)","v":6}]
[null,null,null,null,null,849,{"$f":"PoissonInverse(RAND(),Lambda_Simulation)","v":3}]
[null,null,null,null,null,850,{"$f":"PoissonInverse(RAND(),Lambda_Simulation)","v":2}]
[null,null,null,null,null,851,{"$f":"PoissonInverse(RAND(),Lambda_Simulation)","v":2}]
[null,null,null,null,null,852,{"$f":"PoissonInverse(RAND(),Lambda_Simulation)","v":9}]
[null,null,null,null,null,853,{"$f":"PoissonInverse(RAND(),Lambda_Simulation)","v":4}]
[null,null,null,null,null,854,{"$f":"PoissonInverse(RAND(),Lambda_Simulation)","v":2}]
[null,null,null,null,null,855,{"$f":"PoissonInverse(RAND(),Lambda_Simulation)","v":1}]
[null,null,null,null,null,856,{"$f":"PoissonInverse(RAND(),Lambda_Simulation)","v":5}]
[null,null,null,null,null,857,{"$f":"PoissonInverse(RAND(),Lambda_Simulation)","v":3}]
[null,null,null,null,null,858,{"$f":"PoissonInverse(RAND(),Lambda_Simulation)","v":4}]
[null,null,null,null,null,859,{"$f":"PoissonInverse(RAND(),Lambda_Simulation)","v":5}]
[null,null,null,null,null,860,{"$f":"PoissonInverse(RAND(),Lambda_Simulation)","v":2}]
[null,null,null,null,null,861,{"$f":"PoissonInverse(RAND(),Lambda_Simulation)","v":5}]
[null,null,null,null,null,862,{"$f":"PoissonInverse(RAND(),Lambda_Simulation)","v":2}]
[null,null,null,null,null,863,{"$f":"PoissonInverse(RAND(),Lambda_Simulation)","v":4}]
[null,null,null,null,null,864,{"$f":"PoissonInverse(RAND(),Lambda_Simulation)","v":4}]
[null,null,null,null,null,865,{"$f":"PoissonInverse(RAND(),Lambda_Simulation)","v":7}]
[null,null,null,null,null,866,{"$f":"PoissonInverse(RAND(),Lambda_Simulation)","v":3}]
[null,null,null,null,null,867,{"$f":"PoissonInverse(RAND(),Lambda_Simulation)","v":1}]
[null,null,null,null,null,868,{"$f":"PoissonInverse(RAND(),Lambda_Simulation)","v":5}]
[null,null,null,null,null,869,{"$f":"PoissonInverse(RAND(),Lambda_Simulation)","v":4}]
[null,null,null,null,null,870,{"$f":"PoissonInverse(RAND(),Lambda_Simulation)","v":9}]
[null,null,null,null,null,871,{"$f":"PoissonInverse(RAND(),Lambda_Simulation)","v":3}]
[null,null,null,null,null,872,{"$f":"PoissonInverse(RAND(),Lambda_Simulation)","v":2}]
[null,null,null,null,null,873,{"$f":"PoissonInverse(RAND(),Lambda_Simulation)","v":6}]
[null,null,null,null,null,874,{"$f":"PoissonInverse(RAND(),Lambda_Simulation)","v":3}]
[null,null,null,null,null,875,{"$f":"PoissonInverse(RAND(),Lambda_Simulation)","v":5}]
[null,null,null,null,null,876,{"$f":"PoissonInverse(RAND(),Lambda_Simulation)","v":3}]
[null,null,null,null,null,877,{"$f":"PoissonInverse(RAND(),Lambda_Simulation)","v":2}]
[null,null,null,null,null,878,{"$f":"PoissonInverse(RAND(),Lambda_Simulation)","v":5}]
[null,null,null,null,null,879,{"$f":"PoissonInverse(RAND(),Lambda_Simulation)","v":4}]
[null,null,null,null,null,880,{"$f":"PoissonInverse(RAND(),Lambda_Simulation)","v":3}]
[null,null,null,null,null,881,{"$f":"PoissonInverse(RAND(),Lambda_Simulation)","v":5}]
[null,null,null,null,null,882,{"$f":"PoissonInverse(RAND(),Lambda_Simulation)","v":5}]
[null,null,null,null,null,883,{"$f":"PoissonInverse(RAND(),Lambda_Simulation)","v":6}]
[null,null,null,null,null,884,{"$f":"PoissonInverse(RAND(),Lambda_Simulation)","v":5}]
[null,null,null,null,null,885,{"$f":"PoissonInverse(RAND(),Lambda_Simulation)","v":7}]
[null,null,null,null,null,886,{"$f":"PoissonInverse(RAND(),Lambda_Simulation)","v":4}]
[null,null,null,null,null,887,{"$f":"PoissonInverse(RAND(),Lambda_Simulation)","v":7}]
[null,null,null,null,null,888,{"$f":"PoissonInverse(RAND(),Lambda_Simulation)","v":1}]
[null,null,null,null,null,889,{"$f":"PoissonInverse(RAND(),Lambda_Simulation)","v":1}]
[null,null,null,null,null,890,{"$f":"PoissonInverse(RAND(),Lambda_Simulation)","v":5}]
[null,null,null,null,null,891,{"$f":"PoissonInverse(RAND(),Lambda_Simulation)","v":6}]
[null,null,null,null,null,892,{"$f":"PoissonInverse(RAND(),Lambda_Simulation)","v":5}]
[null,null,null,null,null,893,{"$f":"PoissonInverse(RAND(),Lambda_Simulation)","v":2}]
[null,null,null,null,null,894,{"$f":"PoissonInverse(RAND(),Lambda_Simulation)","v":4}]
[null,null,null,null,null,895,{"$f":"PoissonInverse(RAND(),Lambda_Simulation)","v":4}]
[null,null,null,null,null,896,{"$f":"PoissonInverse(RAND(),Lambda_Simulation)","v":6}]
[null,null,null,null,null,897,{"$f":"PoissonInverse(RAND(),Lambda_Simulation)","v":5}]
[null,null,null,null,null,{"$f":"N(F914)+1","v":898},{"$f":"PoissonInverse(RAND(),Lambda_Simulation)","v":1}]
[null,null,null,null,null,899,{"$f":"PoissonInverse(RAND(),Lambda_Simulation)","v":1}]
[null,null,null,null,null,900,{"$f":"PoissonInverse(RAND(),Lambda_Simulation)","v":2}]
[null,null,null,null,null,901,{"$f":"PoissonInverse(RAND(),Lambda_Simulation)","v":6}]
[null,null,null,null,null,902,{"$f":"PoissonInverse(RAND(),Lambda_Simulation)","v":2}]
[null,null,null,null,null,903,{"$f":"PoissonInverse(RAND(),Lambda_Simulation)","v":2}]
[null,null,null,null,null,904,{"$f":"PoissonInverse(RAND(),Lambda_Simulation)","v":2}]
[null,null,null,null,null,905,{"$f":"PoissonInverse(RAND(),Lambda_Simulation)","v":2}]
[null,null,null,null,null,906,{"$f":"PoissonInverse(RAND(),Lambda_Simulation)","v":4}]
[null,null,null,null,null,907,{"$f":"PoissonInverse(RAND(),Lambda_Simulation)","v":5}]
[null,null,null,null,null,908,{"$f":"PoissonInverse(RAND(),Lambda_Simulation)","v":3}]
[null,null,null,null,null,909,{"$f":"PoissonInverse(RAND(),Lambda_Simulation)","v":4}]
[null,null,null,null,null,910,{"$f":"PoissonInverse(RAND(),Lambda_Simulation)","v":4}]
[null,null,null,null,null,911,{"$f":"PoissonInverse(RAND(),Lambda_Simulation)","v":4}]
[null,null,null,null,null,912,{"$f":"PoissonInverse(RAND(),Lambda_Simulation)","v":3}]
[null,null,null,null,null,913,{"$f":"PoissonInverse(RAND(),Lambda_Simulation)","v":3}]
[null,null,null,null,null,914,{"$f":"PoissonInverse(RAND(),Lambda_Simulation)","v":4}]
[null,null,null,null,null,915,{"$f":"PoissonInverse(RAND(),Lambda_Simulation)","v":5}]
[null,null,null,null,null,916,{"$f":"PoissonInverse(RAND(),Lambda_Simulation)","v":5}]
[null,null,null,null,null,917,{"$f":"PoissonInverse(RAND(),Lambda_Simulation)","v":1}]
[null,null,null,null,null,918,{"$f":"PoissonInverse(RAND(),Lambda_Simulation)","v":1}]
[null,null,null,null,null,919,{"$f":"PoissonInverse(RAND(),Lambda_Simulation)","v":5}]
[null,null,null,null,null,920,{"$f":"PoissonInverse(RAND(),Lambda_Simulation)","v":3}]
[null,null,null,null,null,921,{"$f":"PoissonInverse(RAND(),Lambda_Simulation)","v":3}]
[null,null,null,null,null,922,{"$f":"PoissonInverse(RAND(),Lambda_Simulation)","v":3}]
[null,null,null,null,null,923,{"$f":"PoissonInverse(RAND(),Lambda_Simulation)","v":2}]
[null,null,null,null,null,924,{"$f":"PoissonInverse(RAND(),Lambda_Simulation)","v":7}]
[null,null,null,null,null,925,{"$f":"PoissonInverse(RAND(),Lambda_Simulation)","v":5}]
[null,null,null,null,null,926,{"$f":"PoissonInverse(RAND(),Lambda_Simulation)","v":3}]
[null,null,null,null,null,927,{"$f":"PoissonInverse(RAND(),Lambda_Simulation)","v":8}]
[null,null,null,null,null,928,{"$f":"PoissonInverse(RAND(),Lambda_Simulation)","v":3}]
[null,null,null,null,null,929,{"$f":"PoissonInverse(RAND(),Lambda_Simulation)","v":2}]
[null,null,null,null,null,930,{"$f":"PoissonInverse(RAND(),Lambda_Simulation)","v":3}]
[null,null,null,null,null,931,{"$f":"PoissonInverse(RAND(),Lambda_Simulation)","v":3}]
[null,null,null,null,null,932,{"$f":"PoissonInverse(RAND(),Lambda_Simulation)","v":5}]
[null,null,null,null,null,933,{"$f":"PoissonInverse(RAND(),Lambda_Simulation)","v":2}]
[null,null,null,null,null,934,{"$f":"PoissonInverse(RAND(),Lambda_Simulation)","v":7}]
[null,null,null,null,null,935,{"$f":"PoissonInverse(RAND(),Lambda_Simulation)","v":9}]
[null,null,null,null,null,936,{"$f":"PoissonInverse(RAND(),Lambda_Simulation)","v":5}]
[null,null,null,null,null,937,{"$f":"PoissonInverse(RAND(),Lambda_Simulation)","v":5}]
[null,null,null,null,null,938,{"$f":"PoissonInverse(RAND(),Lambda_Simulation)","v":5}]
[null,null,null,null,null,939,{"$f":"PoissonInverse(RAND(),Lambda_Simulation)","v":1}]
[null,null,null,null,null,940,{"$f":"PoissonInverse(RAND(),Lambda_Simulation)","v":5}]
[null,null,null,null,null,941,{"$f":"PoissonInverse(RAND(),Lambda_Simulation)","v":2}]
[null,null,null,null,null,942,{"$f":"PoissonInverse(RAND(),Lambda_Simulation)","v":6}]
[null,null,null,null,null,943,{"$f":"PoissonInverse(RAND(),Lambda_Simulation)","v":2}]
[null,null,null,null,null,944,{"$f":"PoissonInverse(RAND(),Lambda_Simulation)","v":3}]
[null,null,null,null,null,945,{"$f":"PoissonInverse(RAND(),Lambda_Simulation)","v":2}]
[null,null,null,null,null,946,{"$f":"PoissonInverse(RAND(),Lambda_Simulation)","v":5}]
[null,null,null,null,null,947,{"$f":"PoissonInverse(RAND(),Lambda_Simulation)","v":4}]
[null,null,null,null,null,948,{"$f":"PoissonInverse(RAND(),Lambda_Simulation)","v":4}]
[null,null,null,null,null,949,{"$f":"PoissonInverse(RAND(),Lambda_Simulation)","v":2}]
[null,null,null,null,null,950,{"$f":"PoissonInverse(RAND(),Lambda_Simulation)","v":8}]
[null,null,null,null,null,951,{"$f":"PoissonInverse(RAND(),Lambda_Simulation)","v":3}]
[null,null,null,null,null,952,{"$f":"PoissonInverse(RAND(),Lambda_Simulation)","v":5}]
[null,null,null,null,null,953,{"$f":"PoissonInverse(RAND(),Lambda_Simulation)","v":3}]
[null,null,null,null,null,954,{"$f":"PoissonInverse(RAND(),Lambda_Simulation)","v":3}]
[null,null,null,null,null,955,{"$f":"PoissonInverse(RAND(),Lambda_Simulation)","v":5}]
[null,null,null,null,null,956,{"$f":"PoissonInverse(RAND(),Lambda_Simulation)","v":3}]
[null,null,null,null,null,957,{"$f":"PoissonInverse(RAND(),Lambda_Simulation)","v":5}]
[null,null,null,null,null,958,{"$f":"PoissonInverse(RAND(),Lambda_Simulation)","v":4}]
[null,null,null,null,null,959,{"$f":"PoissonInverse(RAND(),Lambda_Simulation)","v":4}]
[null,null,null,null,null,960,{"$f":"PoissonInverse(RAND(),Lambda_Simulation)","v":3}]
[null,null,null,null,null,961,{"$f":"PoissonInverse(RAND(),Lambda_Simulation)","v":2}]
[null,null,null,null,null,{"$f":"N(F978)+1","v":962},{"$f":"PoissonInverse(RAND(),Lambda_Simulation)","v":6}]
[null,null,null,null,null,963,{"$f":"PoissonInverse(RAND(),Lambda_Simulation)","v":6}]
[null,null,null,null,null,964,{"$f":"PoissonInverse(RAND(),Lambda_Simulation)","v":9}]
[null,null,null,null,null,965,{"$f":"PoissonInverse(RAND(),Lambda_Simulation)","v":1}]
[null,null,null,null,null,966,{"$f":"PoissonInverse(RAND(),Lambda_Simulation)","v":5}]
[null,null,null,null,null,967,{"$f":"PoissonInverse(RAND(),Lambda_Simulation)","v":3}]
[null,null,null,null,null,968,{"$f":"PoissonInverse(RAND(),Lambda_Simulation)","v":5}]
[null,null,null,null,null,969,{"$f":"PoissonInverse(RAND(),Lambda_Simulation)","v":6}]
[null,null,null,null,null,970,{"$f":"PoissonInverse(RAND(),Lambda_Simulation)","v":3}]
[null,null,null,null,null,971,{"$f":"PoissonInverse(RAND(),Lambda_Simulation)","v":8}]
[null,null,null,null,null,972,{"$f":"PoissonInverse(RAND(),Lambda_Simulation)","v":2}]
[null,null,null,null,null,973,{"$f":"PoissonInverse(RAND(),Lambda_Simulation)","v":4}]
[null,null,null,null,null,974,{"$f":"PoissonInverse(RAND(),Lambda_Simulation)","v":0}]
[null,null,null,null,null,975,{"$f":"PoissonInverse(RAND(),Lambda_Simulation)","v":3}]
[null,null,null,null,null,976,{"$f":"PoissonInverse(RAND(),Lambda_Simulation)","v":3}]
[null,null,null,null,null,977,{"$f":"PoissonInverse(RAND(),Lambda_Simulation)","v":6}]
[null,null,null,null,null,978,{"$f":"PoissonInverse(RAND(),Lambda_Simulation)","v":2}]
[null,null,null,null,null,979,{"$f":"PoissonInverse(RAND(),Lambda_Simulation)","v":4}]
[null,null,null,null,null,980,{"$f":"PoissonInverse(RAND(),Lambda_Simulation)","v":5}]
[null,null,null,null,null,981,{"$f":"PoissonInverse(RAND(),Lambda_Simulation)","v":6}]
[null,null,null,null,null,982,{"$f":"PoissonInverse(RAND(),Lambda_Simulation)","v":4}]
[null,null,null,null,null,983,{"$f":"PoissonInverse(RAND(),Lambda_Simulation)","v":7}]
[null,null,null,null,null,984,{"$f":"PoissonInverse(RAND(),Lambda_Simulation)","v":1}]
[null,null,null,null,null,985,{"$f":"PoissonInverse(RAND(),Lambda_Simulation)","v":1}]
[null,null,null,null,null,{"$f":"N(F1002)+1","v":986},{"$f":"PoissonInverse(RAND(),Lambda_Simulation)","v":5}]
[null,null,null,null,null,987,{"$f":"PoissonInverse(RAND(),Lambda_Simulation)","v":4}]
[null,null,null,null,null,988,{"$f":"PoissonInverse(RAND(),Lambda_Simulation)","v":6}]
[null,null,null,null,null,989,{"$f":"PoissonInverse(RAND(),Lambda_Simulation)","v":4}]
[null,null,null,null,null,990,{"$f":"PoissonInverse(RAND(),Lambda_Simulation)","v":3}]
[null,null,null,null,null,991,{"$f":"PoissonInverse(RAND(),Lambda_Simulation)","v":4}]
[null,null,null,null,null,992,{"$f":"PoissonInverse(RAND(),Lambda_Simulation)","v":5}]
[null,null,null,null,null,993,{"$f":"PoissonInverse(RAND(),Lambda_Simulation)","v":2}]
[null,null,null,null,null,994,{"$f":"PoissonInverse(RAND(),Lambda_Simulation)","v":8}]
[null,null,null,null,null,995,{"$f":"PoissonInverse(RAND(),Lambda_Simulation)","v":4}]
[null,null,null,null,null,996,{"$f":"PoissonInverse(RAND(),Lambda_Simulation)","v":8}]
[null,null,null,null,null,997,{"$f":"PoissonInverse(RAND(),Lambda_Simulation)","v":3}]
[null,null,null,null,null,{"$f":"N(F1014)+1","v":998},{"$f":"PoissonInverse(RAND(),Lambda_Simulation)","v":3}]
[null,null,null,null,null,{"$f":"N(F1015)+1","v":999},{"$f":"PoissonInverse(RAND(),Lambda_Simulation)","v":2}]
[null,null,null,null,null,{"$f":"N(F1016)+1","v":1000},{"$f":"PoissonInverse(RAND(),Lambda_Simulation)","v":2}]
[null,null,null,null,null,"Average",{"$f":"AVERAGE(Tbl_Simulation[Fish Caught])","v":4.1269999999999998}]
[]
[]
[]
[null,null,null,null,"Frequency Table"]
[]
[null,null,null,null,null,"Number of Fish","Frequency"]
[null,null,null,null,null,0,{"$f":"IF(ISNUMBER(Tbl_ChartData[[#This Row],[Number of Fish]]),COUNTIF(Tbl_Simulation[Fish Caught],\"<=\" &Tbl_ChartData[[#This Row],[Number of Fish]]),COUNT(Tbl_Simulation[Fish Caught]))-SUM($G$1024:$G1024)","v":12}]
[null,null,null,null,null,{"$f":"F1025+1","v":1},{"$f":"IF(ISNUMBER(Tbl_ChartData[[#This Row],[Number of Fish]]),COUNTIF(Tbl_Simulation[Fish Caught],\"<=\" &Tbl_ChartData[[#This Row],[Number of Fish]]),COUNT(Tbl_Simulation[Fish Caught]))-SUM($G$1024:$G1025)","v":71}]
[null,null,null,null,null,{"$f":"F1026+1","v":2},{"$f":"IF(ISNUMBER(Tbl_ChartData[[#This Row],[Number of Fish]]),COUNTIF(Tbl_Simulation[Fish Caught],\"<=\" &Tbl_ChartData[[#This Row],[Number of Fish]]),COUNT(Tbl_Simulation[Fish Caught]))-SUM($G$1024:$G1026)","v":141}]
[null,null,null,null,null,3,{"$f":"IF(ISNUMBER(Tbl_ChartData[[#This Row],[Number of Fish]]),COUNTIF(Tbl_Simulation[Fish Caught],\"<=\" &Tbl_ChartData[[#This Row],[Number of Fish]]),COUNT(Tbl_Simulation[Fish Caught]))-SUM($G$1024:$G1027)","v":194}]
[null,null,null,null,null,4,{"$f":"IF(ISNUMBER(Tbl_ChartData[[#This Row],[Number of Fish]]),COUNTIF(Tbl_Simulation[Fish Caught],\"<=\" &Tbl_ChartData[[#This Row],[Number of Fish]]),COUNT(Tbl_Simulation[Fish Caught]))-SUM($G$1024:$G1028)","v":196}]
[null,null,null,null,null,5,{"$f":"IF(ISNUMBER(Tbl_ChartData[[#This Row],[Number of Fish]]),COUNTIF(Tbl_Simulation[Fish Caught],\"<=\" &Tbl_ChartData[[#This Row],[Number of Fish]]),COUNT(Tbl_Simulation[Fish Caught]))-SUM($G$1024:$G1029)","v":155}]
[null,null,null,null,null,6,{"$f":"IF(ISNUMBER(Tbl_ChartData[[#This Row],[Number of Fish]]),COUNTIF(Tbl_Simulation[Fish Caught],\"<=\" &Tbl_ChartData[[#This Row],[Number of Fish]]),COUNT(Tbl_Simulation[Fish Caught]))-SUM($G$1024:$G1030)","v":106}]
[null,null,null,null,null,7,{"$f":"IF(ISNUMBER(Tbl_ChartData[[#This Row],[Number of Fish]]),COUNTIF(Tbl_Simulation[Fish Caught],\"<=\" &Tbl_ChartData[[#This Row],[Number of Fish]]),COUNT(Tbl_Simulation[Fish Caught]))-SUM($G$1024:$G1031)","v":60}]
[null,null,null,null,null,8,{"$f":"IF(ISNUMBER(Tbl_ChartData[[#This Row],[Number of Fish]]),COUNTIF(Tbl_Simulation[Fish Caught],\"<=\" &Tbl_ChartData[[#This Row],[Number of Fish]]),COUNT(Tbl_Simulation[Fish Caught]))-SUM($G$1024:$G1032)","v":31}]
[null,null,null,null,null,9,{"$f":"IF(ISNUMBER(Tbl_ChartData[[#This Row],[Number of Fish]]),COUNTIF(Tbl_Simulation[Fish Caught],\"<=\" &Tbl_ChartData[[#This Row],[Number of Fish]]),COUNT(Tbl_Simulation[Fish Caught]))-SUM($G$1024:$G1033)","v":22}]
[null,null,null,null,null,10,{"$f":"IF(ISNUMBER(Tbl_ChartData[[#This Row],[Number of Fish]]),COUNTIF(Tbl_Simulation[Fish Caught],\"<=\" &Tbl_ChartData[[#This Row],[Number of Fish]]),COUNT(Tbl_Simulation[Fish Caught]))-SUM($G$1024:$G1034)","v":4}]
[null,null,null,null,null,11,{"$f":"IF(ISNUMBER(Tbl_ChartData[[#This Row],[Number of Fish]]),COUNTIF(Tbl_Simulation[Fish Caught],\"<=\" &Tbl_ChartData[[#This Row],[Number of Fish]]),COUNT(Tbl_Simulation[Fish Caught]))-SUM($G$1024:$G1035)","v":5}]
[null,null,null,null,null,12,{"$f":"IF(ISNUMBER(Tbl_ChartData[[#This Row],[Number of Fish]]),COUNTIF(Tbl_Simulation[Fish Caught],\"<=\" &Tbl_ChartData[[#This Row],[Number of Fish]]),COUNT(Tbl_Simulation[Fish Caught]))-SUM($G$1024:$G1036)","v":3}]
[null,null,null,null,null,13,{"$f":"IF(ISNUMBER(Tbl_ChartData[[#This Row],[Number of Fish]]),COUNTIF(Tbl_Simulation[Fish Caught],\"<=\" &Tbl_ChartData[[#This Row],[Number of Fish]]),COUNT(Tbl_Simulation[Fish Caught]))-SUM($G$1024:$G1037)","v":0}]
[null,null,null,null,null,14,{"$f":"IF(ISNUMBER(Tbl_ChartData[[#This Row],[Number of Fish]]),COUNTIF(Tbl_Simulation[Fish Caught],\"<=\" &Tbl_ChartData[[#This Row],[Number of Fish]]),COUNT(Tbl_Simulation[Fish Caught]))-SUM($G$1024:$G1038)","v":0}]
[null,null,null,null,null,15,{"$f":"IF(ISNUMBER(Tbl_ChartData[[#This Row],[Number of Fish]]),COUNTIF(Tbl_Simulation[Fish Caught],\"<=\" &Tbl_ChartData[[#This Row],[Number of Fish]]),COUNT(Tbl_Simulation[Fish Caught]))-SUM($G$1024:$G1039)","v":0}]
[null,null,null,null,null,16,{"$f":"IF(ISNUMBER(Tbl_ChartData[[#This Row],[Number of Fish]]),COUNTIF(Tbl_Simulation[Fish Caught],\"<=\" &Tbl_ChartData[[#This Row],[Number of Fish]]),COUNT(Tbl_Simulation[Fish Caught]))-SUM($G$1024:$G1040)","v":0}]
[null,null,null,null,null,17,{"$f":"IF(ISNUMBER(Tbl_ChartData[[#This Row],[Number of Fish]]),COUNTIF(Tbl_Simulation[Fish Caught],\"<=\" &Tbl_ChartData[[#This Row],[Number of Fish]]),COUNT(Tbl_Simulation[Fish Caught]))-SUM($G$1024:$G1041)","v":0}]
[null,null,null,null,null,18,{"$f":"IF(ISNUMBER(Tbl_ChartData[[#This Row],[Number of Fish]]),COUNTIF(Tbl_Simulation[Fish Caught],\"<=\" &Tbl_ChartData[[#This Row],[Number of Fish]]),COUNT(Tbl_Simulation[Fish Caught]))-SUM($G$1024:$G1042)","v":0}]
[null,null,null,null,null,19,{"$f":"IF(ISNUMBER(Tbl_ChartData[[#This Row],[Number of Fish]]),COUNTIF(Tbl_Simulation[Fish Caught],\"<=\" &Tbl_ChartData[[#This Row],[Number of Fish]]),COUNT(Tbl_Simulation[Fish Caught]))-SUM($G$1024:$G1043)","v":0}]
[null,null,null,null,null,20,{"$f":"IF(ISNUMBER(Tbl_ChartData[[#This Row],[Number of Fish]]),COUNTIF(Tbl_Simulation[Fish Caught],\"<=\" &Tbl_ChartData[[#This Row],[Number of Fish]]),COUNT(Tbl_Simulation[Fish Caught]))-SUM($G$1024:$G1044)","v":0}]
[null,null,null,null,null,">20",{"$f":"IF(ISNUMBER(Tbl_ChartData[[#This Row],[Number of Fish]]),COUNTIF(Tbl_Simulation[Fish Caught],\"<=\" &Tbl_ChartData[[#This Row],[Number of Fish]]),COUNT(Tbl_Simulation[Fish Caught]))-SUM($G$1024:$G1045)","v":0}]
[null,null,null,null,null,"Total",{"$f":"SUBTOTAL(109,Tbl_ChartData[Frequency])","v":1000}]

{"sheet":"Timing","index":6,"n_rows":23,"n_cols":14,"rows_kept":23,"cut":false,"hidden":false,"merged":[]}
[{"$f":"IF(ISERROR(RIGHT(CELL(\"filename\",A1),LEN(CELL(\"filename\",A1))-FIND(\"]\",CELL(\"filename\",A1)))),\n\"\",\nRIGHT(CELL(\"filename\",A1),LEN(CELL(\"filename\",A1))-FIND(\"]\",CELL(\"filename\",A1))))","v":"Timing"}]
[{"$f":"Model_Name","v":"SP Go Poisson.xlsm"}]
["Navigator"]
[null,"Error Checks:",null,null,null,{"$f":"Overall_Error_Check","v":0}]
[null,null,null,null,null,null,null,null,null,{"$f":"J$7","v":"2018-03-31"},{"$f":"K$7","v":"2018-06-30"},{"$f":"L$7","v":"2018-09-30"},{"$f":"M$7","v":"2018-12-31"},{"$f":"N$7","v":"2019-03-31"}]
[null,null,"Start Date",null,null,null,null,null,null,{"$f":"IF(J$9=1,Model_Start_Date,I$7+1)","v":"2018-01-30"},{"$f":"IF(K$9=1,Model_Start_Date,J$7+1)","v":"2018-04-01"},{"$f":"IF(L$9=1,Model_Start_Date,K$7+1)","v":"2018-07-01"},{"$f":"IF(M$9=1,Model_Start_Date,L$7+1)","v":"2018-10-01"},{"$f":"IF(N$9=1,Model_Start_Date,M$7+1)","v":"2019-01-01"}]
[null,null,"End Date",null,null,null,null,null,null,{"$f":"EOMONTH(J$6,MOD(Periodicity+Reporting_Month_Factor-MONTH(J$6),Periodicity))","v":"2018-03-31"},{"$f":"EOMONTH(K$6,MOD(Periodicity+Reporting_Month_Factor-MONTH(K$6),Periodicity))","v":"2018-06-30"},{"$f":"EOMONTH(L$6,MOD(Periodicity+Reporting_Month_Factor-MONTH(L$6),Periodicity))","v":"2018-09-30"},{"$f":"EOMONTH(M$6,MOD(Periodicity+Reporting_Month_Factor-MONTH(M$6),Periodicity))","v":"2018-12-31"},{"$f":"EOMONTH(N$6,MOD(Periodicity+Reporting_Month_Factor-MONTH(N$6),Periodicity))","v":"2019-03-31"}]
[null,null,"Number of Days",null,null,null,null,null,null,{"$f":"J7-J6+1","v":61},{"$f":"K7-K6+1","v":91},{"$f":"L7-L6+1","v":92},{"$f":"M7-M6+1","v":92},{"$f":"N7-N6+1","v":90}]
[null,null,"Counter",null,null,null,null,null,null,{"$f":"N(I$9)+1","v":1},{"$f":"N(J$9)+1","v":2},{"$f":"N(K$9)+1","v":3},{"$f":"N(L$9)+1","v":4},{"$f":"N(M$9)+1","v":5}]
[]
[null,{"$f":"MAX($B$10:$B10)+1","v":1},"Timing Assumptions"]
[]
[null,null,"Data (do not change once modelling has commenced)"]
[]
[null,null,null,"Model Start Date",null,null,null,{"$f":"TODAY()","v":"2018-01-30"}]
[]
[null,null,null,"Number of Months in a Full Period",null,null,null,3]
[]
[null,null,null,"Example Reporting Month",null,null,null,12,{"$f":"\"e.g. \"&TEXT(DATE(YEAR(Model_Start_Date)+IF(Example_Reporting_Month<MONTH(Model_Start_Date),1,0),Example_Reporting_Month+1,1)-1,\"dd-Mmm-yy\")","v":"e.g. 31-Dec-18"}]
[]
[null,null,null,"Reporting Month Factor",null,null,null,{"$f":"MOD(Example_Reporting_Month-1,Periodicity)+1","v":3}]
[]
[null,null,null,"Months per Year",null,null,null,12]

{"sheet":"Error Checks","index":7,"n_rows":17,"n_cols":9,"rows_kept":17,"cut":false,"hidden":false,"merged":[[0,8,0,9]]}
[{"$f":"IF(ISERROR(RIGHT(CELL(\"filename\",A1),LEN(CELL(\"filename\",A1))-FIND(\"]\",CELL(\"filename\",A1)))),\n\"\",\nRIGHT(CELL(\"filename\",A1),LEN(CELL(\"filename\",A1))-FIND(\"]\",CELL(\"filename\",A1))))","v":"Error Checks"}]
[{"$f":"Model_Name","v":"SP Go Poisson.xlsm"}]
["Navigator"]
[null,"Error Checks:",null,null,null,{"$f":"Overall_Error_Check","v":0}]
[]
[null,{"$f":"MAX($B$5:$B5)+1","v":1},"Error Checks"]
[]
[null,null,"Summary of Errors"]
[]
[null,null,null,"Assumptions"]
[]
[null,null,null,null,"Example"]
[]
[]
[]
[]
[null,null,null,null,{"$f":"C8","v":"Summary of Errors"},null,null,null,{"$f":"MIN(1,SUM(I11:I15))","v":0}]

{"sheet":"Change Log","index":8,"n_rows":13,"n_cols":11,"rows_kept":13,"cut":false,"hidden":false,"merged":[]}
[{"$f":"IF(ISERROR(RIGHT(CELL(\"filename\",A1),LEN(CELL(\"filename\",A1))-FIND(\"]\",CELL(\"filename\",A1)))),\n\"\",\nRIGHT(CELL(\"filename\",A1),LEN(CELL(\"filename\",A1))-FIND(\"]\",CELL(\"filename\",A1))))","v":"Change Log"}]
[{"$f":"Model_Name","v":"SP Go Poisson.xlsm"}]
["Navigator"]
[null,"Error Checks:",null,null,null,{"$f":"Overall_Error_Check","v":0}]
[]
[null,{"$f":"MAX($B$5:$B5)+1","v":1},{"$f":"A1","v":"Change Log"}]
[]
[null,null,"Summary"]
[]
[null,null,null,null,null,"Date","Model Version ","Details of change","Worksheet Reference","Row, column, cell reference","Author"]
[null,null,null,null,null,"2018-01-30","SP Go Poisson.xlsm","Added Poisson Inverse Macro","Module 1",null,"CN"]
[null,null,null,null,null,"2018-01-30","SP Go Poisson.xlsm","Show how Poisson.Dist calculates","Poisson Distribution",null,"CN"]
[null,null,null,null,null,"2018-01-30","SP Go Poisson.xlsm","Simulation Example Created","Simulation",null,"CN"]